Body,Body name,Date,Transaction number,Amount,Non recoverable VAT included in amount,Supplier name,Supplier ID,Expense area,Fund type,Expense type,Category description
http://statistics.data.gov.uk/search?search=E07000114,Thanet District Council,06/02/2018,447524,2399.00,,Accordio Limited,ACC010,East Kent Shared Services,Revenue,Services,Consultancy
http://statistics.data.gov.uk/search?search=E07000114,Thanet District Council,06/02/2018,447616,499.00,,Acoustic Arrangements Limited,ACC011,Operational Services,Revenue,Communications & Computing,Arts And Leisure Services
http://statistics.data.gov.uk/search?search=E07000114,Thanet District Council,06/02/2018,447562,3500.00,,Bradstowe Chartered Surveyors,BRA027,Corporate Resources and S151,Balance Sheet,Council Dwellings,Facilities And Mangement Serv
http://statistics.data.gov.uk/search?search=E07000114,Thanet District Council,06/02/2018,447511,4187.00,,British Ports Association,BPA002,Operational Services,Revenue,Grants & Subscriptions,Human Resources
http://statistics.data.gov.uk/search?search=E07000114,Thanet District Council,06/02/2018,447489,141.42,,Canon (Uk) Ltd,CAN021,Community Services,Revenue,"Equip, Furniture And Materials",Facilities And Mangement Serv
http://statistics.data.gov.uk/search?search=E07000114,Thanet District Council,06/02/2018,447489,1133.25,,Canon (Uk) Ltd,CAN021,Corporate Governance,Revenue,"Equip, Furniture And Materials",Facilities And Mangement Serv
http://statistics.data.gov.uk/search?search=E07000114,Thanet District Council,06/02/2018,447489,707.10,,Canon (Uk) Ltd,CAN021,Operational Services,Revenue,"Equip, Furniture And Materials",Facilities And Mangement Serv
http://statistics.data.gov.uk/search?search=E07000114,Thanet District Council,06/02/2018,445601,2299.95,,Capita Business Services Ltd,CAP001,Corporate Resources and S151,Revenue,Services,Human Resources
http://statistics.data.gov.uk/search?search=E07000114,Thanet District Council,06/02/2018,446744,2372.67,,Capita Business Services Ltd,CAP001,Corporate Resources and S151,Revenue,Services,Human Resources
http://statistics.data.gov.uk/search?search=E07000114,Thanet District Council,06/02/2018,447837,317.99,,Ccs Media Limited,CCS003,Community Services,Revenue,"Equip, Furniture And Materials",ICT
http://statistics.data.gov.uk/search?search=E07000114,Thanet District Council,06/02/2018,447775,210.00,,Cipfa Business Ltd,CIP008,Corporate Resources and S151,Revenue,Expenses,Financial Services
http://statistics.data.gov.uk/search?search=E07000114,Thanet District Council,06/02/2018,447819,2106.94,,Computerland Uk Limited,COM045,East Kent Shared Services,Revenue,Communications & Computing,ICT
http://statistics.data.gov.uk/search?search=E07000114,Thanet District Council,06/02/2018,445968,315.00,,Convenience Services Limited,CON040,Operational Services,Revenue,"Repairs,  Alter & Mtce - Build",Facilities And Mangement Serv
http://statistics.data.gov.uk/search?search=E07000114,Thanet District Council,06/02/2018,447541,5300.00,,Daedalus Environmental Ltd,DAE001,Community Services,Revenue,Services,Consultancy
http://statistics.data.gov.uk/search?search=E07000114,Thanet District Council,06/02/2018,447325,8306.50,,Dcb (Kent) Ltd,DCB001,Corporate Resources and S151,Balance Sheet,Repairs And Mtce Holding A/C,Construction-Repair And Maint
http://statistics.data.gov.uk/search?search=E07000114,Thanet District Council,06/02/2018,447515,4202.29,,Dcb (Kent) Ltd,DCB001,Corporate Resources and S151,Balance Sheet,Repairs And Mtce Holding A/C,Construction-Repair And Maint
http://statistics.data.gov.uk/search?search=E07000114,Thanet District Council,06/02/2018,447519,1293.38,,Dcb (Kent) Ltd,DCB001,Corporate Resources and S151,Balance Sheet,Repairs And Mtce Holding A/C,Construction-Repair And Maint
http://statistics.data.gov.uk/search?search=E07000114,Thanet District Council,06/02/2018,447520,43028.18,,Dcb (Kent) Ltd,DCB001,Corporate Resources and S151,Balance Sheet,Repairs And Mtce Holding A/C,Construction-Repair And Maint
http://statistics.data.gov.uk/search?search=E07000114,Thanet District Council,06/02/2018,447759,375.00,,Diversified Business Comms Uk Ltd,DIV001,Community Services,Revenue,Miscellaneous Expenses,Facilities And Mangement Serv
http://statistics.data.gov.uk/search?search=E07000114,Thanet District Council,06/02/2018,447802,1575.00,,Dr R K Chhabra,CHH001,Operational Services,Revenue,Services,Cemetery And Crematorium
http://statistics.data.gov.uk/search?search=E07000114,Thanet District Council,06/02/2018,447574,14010.40,,Facultatieve Technologies,FAC003,Operational Services,Revenue,"Repairs,  Alter & Mtce - Build",Cemetery And Crematorium
http://statistics.data.gov.uk/search?search=E07000114,Thanet District Council,06/02/2018,448028,852.79,,Family Mosaic Housing,FAM001,Corporate Resources and S151,Balance Sheet,Capital Exp-Non Council Assets,Housing Management
http://statistics.data.gov.uk/search?search=E07000114,Thanet District Council,06/02/2018,447332,549.02,,Farrer Barnes Limited,FAR012,Corporate Resources and S151,Revenue,Agency Staff,Human Resources
http://statistics.data.gov.uk/search?search=E07000114,Thanet District Council,06/02/2018,447333,578.74,,Farrer Barnes Limited,FAR012,Corporate Resources and S151,Revenue,Agency Staff,Human Resources
http://statistics.data.gov.uk/search?search=E07000114,Thanet District Council,06/02/2018,447792,694.49,,Farrer Barnes Limited,FAR012,Corporate Resources and S151,Revenue,Agency Staff,Human Resources
http://statistics.data.gov.uk/search?search=E07000114,Thanet District Council,06/02/2018,447793,609.05,,Farrer Barnes Limited,FAR012,Corporate Resources and S151,Revenue,Agency Staff,Human Resources
http://statistics.data.gov.uk/search?search=E07000114,Thanet District Council,06/02/2018,448042,8931.88,,Furley Page Solicitors,FUR003,Corporate Resources and S151,Balance Sheet,Capital Exp-Non Council Assets,Grants
http://statistics.data.gov.uk/search?search=E07000114,Thanet District Council,06/02/2018,447594,300.00,,Gayle Ashley,ASH013,Community Services,Revenue,Services,Legal Services
http://statistics.data.gov.uk/search?search=E07000114,Thanet District Council,06/02/2018,447462,9232.00,,Grant Thornton Uk Llp,GRA048,Corporate Resources and S151,Revenue,Services,Financial Services
http://statistics.data.gov.uk/search?search=E07000114,Thanet District Council,06/02/2018,447513,2876.60,,Hartwell Architects,HAR075,Corporate Resources and S151,Balance Sheet,Council Dwellings,Construction-Repair And Maint
http://statistics.data.gov.uk/search?search=E07000114,Thanet District Council,06/02/2018,447478,790.25,,Hays Specialist Recruitment Ltd,HAY020,Community Services,Revenue,Agency Staff,Human Resources
http://statistics.data.gov.uk/search?search=E07000114,Thanet District Council,06/02/2018,447838,977.30,,Hays Specialist Recruitment Ltd,HAY020,Community Services,Revenue,Agency Staff,Human Resources
http://statistics.data.gov.uk/search?search=E07000114,Thanet District Council,06/02/2018,447525,333.75,,Heidelberg Graphic Equipment Ltd,HEI002,Corporate Governance,Revenue,"Equip, Furniture And Materials",Facilities And Mangement Serv
http://statistics.data.gov.uk/search?search=E07000114,Thanet District Council,06/02/2018,447470,375.00,,Hi Way Services Ltd,HIW002,Operational Services,Revenue,"Repairs,  Alter & Mtce - Build",Highway Equipment And Material
http://statistics.data.gov.uk/search?search=E07000114,Thanet District Council,06/02/2018,447471,375.00,,Hi Way Services Ltd,HIW002,Operational Services,Revenue,"Repairs,  Alter & Mtce - Build",Highway Equipment And Material
http://statistics.data.gov.uk/search?search=E07000114,Thanet District Council,06/02/2018,447472,375.00,,Hi Way Services Ltd,HIW002,Operational Services,Revenue,"Repairs,  Alter & Mtce - Build",Highway Equipment And Material
http://statistics.data.gov.uk/search?search=E07000114,Thanet District Council,06/02/2018,447996,21012.10,,Hipperson Builders (M & E) Limited,HIP002,Corporate Resources and S151,Balance Sheet,Other Land And Buildings-Hra,Construction-Repair And Maint
http://statistics.data.gov.uk/search?search=E07000114,Thanet District Council,06/02/2018,447557,699.54,,Hr Go (Kent) Ltd,HRG001,Operational Services,Revenue,Services,Human Resources
http://statistics.data.gov.uk/search?search=E07000114,Thanet District Council,06/02/2018,447561,868.84,,Hr Go (Kent) Ltd,HRG001,Operational Services,Revenue,Agency Staff,Human Resources
http://statistics.data.gov.uk/search?search=E07000114,Thanet District Council,06/02/2018,447326,536.00,,Imperial Civil Enforcement Sols Ltd,IMP008,Operational Services,Revenue,"Equip, Furniture And Materials",Street And Traffic Management
http://statistics.data.gov.uk/search?search=E07000114,Thanet District Council,06/02/2018,447810,1095.00,,Irrv,IRR002,East Kent Shared Services,Revenue,Grants & Subscriptions,Human Resources
http://statistics.data.gov.uk/search?search=E07000114,Thanet District Council,06/02/2018,448024,1000.00,,Jesse Holness Property Services S E Ltd,JES003,Community Services,Revenue,Grants & Subscriptions,Housing Management
http://statistics.data.gov.uk/search?search=E07000114,Thanet District Council,06/02/2018,448031,583.00,,John Gale,GAL001,Corporate Resources and S151,Balance Sheet,Capital Exp-Non Council Assets,Grants
http://statistics.data.gov.uk/search?search=E07000114,Thanet District Council,06/02/2018,448032,1504.50,,John Gale,GAL001,Corporate Resources and S151,Balance Sheet,Capital Exp-Non Council Assets,Grants
http://statistics.data.gov.uk/search?search=E07000114,Thanet District Council,06/02/2018,448033,1249.70,,John Gale,GAL001,Corporate Resources and S151,Balance Sheet,Capital Exp-Non Council Assets,Grants
http://statistics.data.gov.uk/search?search=E07000114,Thanet District Council,06/02/2018,447410,1218.12,,Kent County Council,KCC002,Community Services,Revenue,Services,Various Cats-Public Sector
http://statistics.data.gov.uk/search?search=E07000114,Thanet District Council,06/02/2018,447554,390.00,,Kent Forklift Training Limited,KFO003,Operational Services,Revenue,Training,Human Resources
http://statistics.data.gov.uk/search?search=E07000114,Thanet District Council,06/02/2018,447098,3671.67,,Kgb Cleaning & Support Services Ltd,KGB001,Operational Services,Revenue,Cleaning & Domestic Supplies,Cleaning And Janitorial
http://statistics.data.gov.uk/search?search=E07000114,Thanet District Council,06/02/2018,448041,14713.56,,Magical Escapes Limited,MAG011,Corporate Resources and S151,Balance Sheet,Capital Exp-Non Council Assets,Grants
http://statistics.data.gov.uk/search?search=E07000114,Thanet District Council,06/02/2018,447879,366.67,,Mama Feelgoods,MAM004,Community Services,Revenue,Services,Facilities And Mangement Serv
http://statistics.data.gov.uk/search?search=E07000114,Thanet District Council,06/02/2018,447571,548.00,,Maple Fleet Services Ltd,MAP002,Operational Services,Revenue,Direct Transport Costs,Vehicle Management
http://statistics.data.gov.uk/search?search=E07000114,Thanet District Council,06/02/2018,447465,1000.00,,Matrix Communications Ltd,MAT004,Corporate Resources and S151,Balance Sheet,Other Land And Buildings-Hra,ICT
http://statistics.data.gov.uk/search?search=E07000114,Thanet District Council,06/02/2018,447617,5028.05,,Mears Ltd,MEA003,Corporate Resources and S151,Balance Sheet,Repairs And Mtce Holding A/C,Construction-Repair And Maint
http://statistics.data.gov.uk/search?search=E07000114,Thanet District Council,06/02/2018,447618,1175.70,,Mears Ltd,MEA003,Corporate Resources and S151,Balance Sheet,Repairs And Mtce Holding A/C,Construction-Repair And Maint
http://statistics.data.gov.uk/search?search=E07000114,Thanet District Council,06/02/2018,447757,8518.13,,Mears Ltd,MEA003,Corporate Resources and S151,Balance Sheet,Repairs And Mtce Holding A/C,Construction-Repair And Maint
http://statistics.data.gov.uk/search?search=E07000114,Thanet District Council,06/02/2018,447293,300.00,,Michael Page Int Recruitment Ltd,PAG008,East Kent Shared Services,Revenue,Agency Staff,Human Resources
http://statistics.data.gov.uk/search?search=E07000114,Thanet District Council,06/02/2018,447305,1350.00,,Michael Page Int Recruitment Ltd,PAG008,East Kent Shared Services,Revenue,Agency Staff,Human Resources
http://statistics.data.gov.uk/search?search=E07000114,Thanet District Council,06/02/2018,447752,1200.00,,Michael Page Int Recruitment Ltd,PAG008,East Kent Shared Services,Revenue,Agency Staff,Human Resources
http://statistics.data.gov.uk/search?search=E07000114,Thanet District Council,06/02/2018,448015,883.75,,National Express Ltd,NAT010,Community Services,Revenue,Services,Agency Payments
http://statistics.data.gov.uk/search?search=E07000114,Thanet District Council,06/02/2018,447182,10000.00,,Neopost Limited Neofunds,NEO004,Corporate Governance,Revenue,Communications & Computing,Mail Services
http://statistics.data.gov.uk/search?search=E07000114,Thanet District Council,06/02/2018,447756,483.40,,Neopost Ltd,NEO003,Corporate Governance,Revenue,"Equip, Furniture And Materials",Mail Services
http://statistics.data.gov.uk/search?search=E07000114,Thanet District Council,06/02/2018,447461,2850.00,,Nowmedical,NOW001,Community Services,Revenue,Expenses,Healthcare
http://statistics.data.gov.uk/search?search=E07000114,Thanet District Council,06/02/2018,447565,724.88,,Ohuk Limited,OHU001,Operational Services,Revenue,Agency Staff,Human Resources
http://statistics.data.gov.uk/search?search=E07000114,Thanet District Council,06/02/2018,447804,272.00,,Orbital Net Ltd,ORB008,Corporate Resources and S151,Revenue,Communications & Computing,ICT
http://statistics.data.gov.uk/search?search=E07000114,Thanet District Council,06/02/2018,446674,2795.00,,P & R Installation Company Limited,PRI035,Corporate Resources and S151,Balance Sheet,Repairs And Mtce Holding A/C,Building Construction Material
http://statistics.data.gov.uk/search?search=E07000114,Thanet District Council,06/02/2018,446675,61961.24,,P & R Installation Company Limited,PRI035,Corporate Resources and S151,Balance Sheet,Repairs And Mtce Holding A/C,Building Construction Material
http://statistics.data.gov.uk/search?search=E07000114,Thanet District Council,06/02/2018,446676,24377.50,,P & R Installation Company Limited,PRI035,Corporate Resources and S151,Balance Sheet,Repairs And Mtce Holding A/C,Building Construction Material
http://statistics.data.gov.uk/search?search=E07000114,Thanet District Council,06/02/2018,446677,731.25,,P & R Installation Company Limited,PRI035,Corporate Resources and S151,Balance Sheet,Repairs And Mtce Holding A/C,Building Construction Material
http://statistics.data.gov.uk/search?search=E07000114,Thanet District Council,06/02/2018,446678,620.96,,P & R Installation Company Limited,PRI035,Corporate Resources and S151,Balance Sheet,Repairs And Mtce Holding A/C,Building Construction Material
http://statistics.data.gov.uk/search?search=E07000114,Thanet District Council,06/02/2018,446703,620.96,,P & R Installation Company Limited,PRI035,Corporate Resources and S151,Balance Sheet,Repairs And Mtce Holding A/C,Building Construction Material
http://statistics.data.gov.uk/search?search=E07000114,Thanet District Council,06/02/2018,447539,1800.00,,Porchlight,POR020,Community Services,Revenue,Grants & Subscriptions,Various Categories
http://statistics.data.gov.uk/search?search=E07000114,Thanet District Council,06/02/2018,447544,721.50,,R S S (Wessex) Limited,RSS002,Operational Services,Revenue,Agency Staff,Human Resources
http://statistics.data.gov.uk/search?search=E07000114,Thanet District Council,06/02/2018,448035,1043.70,,Rowe & Martin Limited,ROW015,Corporate Resources and S151,Balance Sheet,Capital Exp-Non Council Assets,Grants
http://statistics.data.gov.uk/search?search=E07000114,Thanet District Council,06/02/2018,448043,1250.00,,Rupert Beloff,BEL023,Corporate Governance,Revenue,Services,Legal Services
http://statistics.data.gov.uk/search?search=E07000114,Thanet District Council,06/02/2018,444715,1001.41,,Scottish Water Business Stream Ltd,SCO019,Operational Services,Revenue,Water Services,Utilities
http://statistics.data.gov.uk/search?search=E07000114,Thanet District Council,06/02/2018,445870,2176.78,,Scottish Water Business Stream Ltd,SCO019,Operational Services,Revenue,Water Services,Utilities
http://statistics.data.gov.uk/search?search=E07000114,Thanet District Council,06/02/2018,446036,1314.11,,Scottish Water Business Stream Ltd,SCO019,Operational Services,Revenue,Water Services,Utilities
http://statistics.data.gov.uk/search?search=E07000114,Thanet District Council,06/02/2018,447613,-925.85,,Scottish Water Business Stream Ltd,SCO019,Operational Services,Revenue,Water Services,Utilities
http://statistics.data.gov.uk/search?search=E07000114,Thanet District Council,06/02/2018,447786,3145.23,,Scottish Water Business Stream Ltd,SCO019,Operational Services,Revenue,Water Services,Utilities
http://statistics.data.gov.uk/search?search=E07000114,Thanet District Council,06/02/2018,447798,-1268.89,,Scottish Water Business Stream Ltd,SCO019,Operational Services,Revenue,Water Services,Utilities
http://statistics.data.gov.uk/search?search=E07000114,Thanet District Council,06/02/2018,447328,940.70,,Sellick Partnership Ltd,SEL011,Corporate Governance,Revenue,Services,Human Resources
http://statistics.data.gov.uk/search?search=E07000114,Thanet District Council,06/02/2018,447329,940.70,,Sellick Partnership Ltd,SEL011,Corporate Governance,Revenue,Services,Human Resources
http://statistics.data.gov.uk/search?search=E07000114,Thanet District Council,06/02/2018,447463,316.68,,Sellick Partnership Ltd,SEL011,Corporate Governance,Revenue,Services,Human Resources
http://statistics.data.gov.uk/search?search=E07000114,Thanet District Council,06/02/2018,447614,940.70,,Sellick Partnership Ltd,SEL011,Corporate Governance,Revenue,Services,Human Resources
http://statistics.data.gov.uk/search?search=E07000114,Thanet District Council,06/02/2018,447880,323.61,,Sellick Partnership Ltd,SEL011,Corporate Governance,Revenue,Services,Human Resources
http://statistics.data.gov.uk/search?search=E07000114,Thanet District Council,06/02/2018,447790,1632.00,,Socotec Uk Limited,SOC005,Community Services,Revenue,Services,Environmental Services
http://statistics.data.gov.uk/search?search=E07000114,Thanet District Council,06/02/2018,448034,540.00,,South East Building Company Limited,SEB001,Corporate Resources and S151,Balance Sheet,Capital Exp-Non Council Assets,Grants
http://statistics.data.gov.uk/search?search=E07000114,Thanet District Council,06/02/2018,448038,5830.00,,South East Building Company Limited,SEB001,Corporate Resources and S151,Balance Sheet,Capital Exp-Non Council Assets,Grants
http://statistics.data.gov.uk/search?search=E07000114,Thanet District Council,06/02/2018,448040,5490.00,,South East Building Company Limited,SEB001,Corporate Resources and S151,Balance Sheet,Capital Exp-Non Council Assets,Grants
http://statistics.data.gov.uk/search?search=E07000114,Thanet District Council,06/02/2018,447398,386.00,,Spaldings  Ltd,SPA006,Operational Services,Revenue,"Equip, Furniture And Materials",Horticultural
http://statistics.data.gov.uk/search?search=E07000114,Thanet District Council,06/02/2018,447321,681.16,,Standfast Burglar Alarm Co (Ek) Ltd,STA003,Operational Services,Revenue,"Equip, Furniture And Materials",Facilities And Mangement Serv
http://statistics.data.gov.uk/search?search=E07000114,Thanet District Council,06/02/2018,448046,300.00,,Sycon Uk Ltd,SYC002,Community Services,Revenue,Grants & Subscriptions,Rent Deposits
http://statistics.data.gov.uk/search?search=E07000114,Thanet District Council,06/02/2018,439998,1240.00,,Teleshore (Uk) Ltd,TEL003,Operational Services,Revenue,"Equip, Furniture And Materials",Cemetery And Crematorium
http://statistics.data.gov.uk/search?search=E07000114,Thanet District Council,06/02/2018,448048,80.00,,Teleshore (Uk) Ltd,TEL003,Operational Services,Revenue,Services,Cemetery And Crematorium
http://statistics.data.gov.uk/search?search=E07000114,Thanet District Council,06/02/2018,447522,31.21,,Tfa Fuel Services Ltd,TFA003,Operational Services,Revenue,Direct Transport Costs,Utilities
http://statistics.data.gov.uk/search?search=E07000114,Thanet District Council,06/02/2018,447522,350.11,,Tfa Fuel Services Ltd,TFA003,Operational Services,Revenue,"Equip, Furniture And Materials",Utilities
http://statistics.data.gov.uk/search?search=E07000114,Thanet District Council,06/02/2018,447395,3672.05,,The Glenwood Hotel,GLE007,Community Services,Revenue,Services,Housing Management
http://statistics.data.gov.uk/search?search=E07000114,Thanet District Council,06/02/2018,447396,2659.97,,The Glenwood Hotel,GLE007,Community Services,Revenue,Services,Housing Management
http://statistics.data.gov.uk/search?search=E07000114,Thanet District Council,06/02/2018,447397,2778.30,,The Glenwood Hotel,GLE007,Community Services,Revenue,Services,Housing Management
http://statistics.data.gov.uk/search?search=E07000114,Thanet District Council,06/02/2018,447399,1812.06,,The Glenwood Hotel,GLE007,Community Services,Revenue,Services,Housing Management
http://statistics.data.gov.uk/search?search=E07000114,Thanet District Council,06/02/2018,447575,2502.52,,The Glenwood Hotel,GLE007,Community Services,Revenue,Services,Housing Management
http://statistics.data.gov.uk/search?search=E07000114,Thanet District Council,06/02/2018,447576,3175.01,,The Glenwood Hotel,GLE007,Community Services,Revenue,Services,Housing Management
http://statistics.data.gov.uk/search?search=E07000114,Thanet District Council,06/02/2018,446708,516.00,,Townsends Engineering Ltd,TOW016,Operational Services,Revenue,"Repairs,  Alter & Mtce - Build",Construction-Repair And Maint
http://statistics.data.gov.uk/search?search=E07000114,Thanet District Council,06/02/2018,448039,12497.00,,Trueden Disability Adaptations Ltd,TRU012,Corporate Resources and S151,Balance Sheet,Capital Exp-Non Council Assets,Grants
http://statistics.data.gov.uk/search?search=E07000114,Thanet District Council,06/02/2018,447322,6000.00,,Vector Resourcing Ltd,VEC001,East Kent Shared Services,Revenue,Agency Staff,Human Resources
http://statistics.data.gov.uk/search?search=E07000114,Thanet District Council,06/02/2018,446959,2245.00,,W Brazil & Bros,BRA001,Operational Services,Revenue,Grounds Mtce Costs,Environmental Services
http://statistics.data.gov.uk/search?search=E07000114,Thanet District Council,06/02/2018,446965,280.00,,W Brazil & Bros,BRA001,Operational Services,Revenue,Grounds Mtce Costs,Environmental Services
http://statistics.data.gov.uk/search?search=E07000114,Thanet District Council,06/02/2018,447482,490.00,,Wealden Rehab Ltd,WEA009,Corporate Resources and S151,Balance Sheet,Repairs And Mtce Holding A/C,Building Construction Material
http://statistics.data.gov.uk/search?search=E07000114,Thanet District Council,06/02/2018,448036,7106.63,,Willow Tree Home Solutions Ltd,WIL076,Corporate Resources and S151,Balance Sheet,Capital Exp-Non Council Assets,Grants
http://statistics.data.gov.uk/search?search=E07000114,Thanet District Council,06/02/2018,448037,1726.80,,Willow Tree Home Solutions Ltd,WIL076,Corporate Resources and S151,Balance Sheet,Capital Exp-Non Council Assets,Grants
http://statistics.data.gov.uk/search?search=E07000114,Thanet District Council,06/02/2018,448047,1800.00,,Your Leisure Kent Limited,YOU016,Corporate Resources and S151,Balance Sheet,Insurance Holding Account,Arts And Leisure Services
http://statistics.data.gov.uk/search?search=E07000114,Thanet District Council,08/02/2018,447300,1400.00,,All About Asbestos Limited,ALL044,Corporate Governance,Revenue,"Repairs,  Alter & Mtce - Build",Environmental Services
http://statistics.data.gov.uk/search?search=E07000114,Thanet District Council,08/02/2018,446767,286.01,,Canon (Uk) Ltd,CAN021,Corporate Governance,Revenue,"Equip, Furniture And Materials",Facilities And Mangement Serv
http://statistics.data.gov.uk/search?search=E07000114,Thanet District Council,08/02/2018,447062,243.25,,Canon (Uk) Ltd,CAN021,Corporate Governance,Revenue,"Print, Stat And Gen Off Exps",Facilities And Mangement Serv
http://statistics.data.gov.uk/search?search=E07000114,Thanet District Council,08/02/2018,447092,1696.00,,Cobalt Consulting (Uk) Limited,COB004,Corporate Governance,Revenue,Agency Staff,Human Resources
http://statistics.data.gov.uk/search?search=E07000114,Thanet District Council,08/02/2018,446736,3519.72,,Commercial Services Trading Ltd,COM048,Operational Services,Revenue,Cont Hire & Operating Lease,Various Cats-Public Sector
http://statistics.data.gov.uk/search?search=E07000114,Thanet District Council,08/02/2018,447898,2000.00,,Dover District Council,DOV001,Community Services,Revenue,Communications & Computing,Various Cats-Public Sector
http://statistics.data.gov.uk/search?search=E07000114,Thanet District Council,08/02/2018,446949,247.68,,Elec-Sec Ltd,ELE014,Corporate Resources and S151,Balance Sheet,Other Land And Buildings-Hra,Building Construction Material
http://statistics.data.gov.uk/search?search=E07000114,Thanet District Council,08/02/2018,447010,375.00,,Hi Way Services Ltd,HIW002,Operational Services,Revenue,"Repairs,  Alter & Mtce - Build",Highway Equipment And Material
http://statistics.data.gov.uk/search?search=E07000114,Thanet District Council,08/02/2018,444157,498.11,,Hr Go (Kent) Ltd,HRG001,Operational Services,Revenue,Agency Staff,Human Resources
http://statistics.data.gov.uk/search?search=E07000114,Thanet District Council,08/02/2018,444196,675.50,,Hr Go (Kent) Ltd,HRG001,Operational Services,Revenue,Agency Staff,Human Resources
http://statistics.data.gov.uk/search?search=E07000114,Thanet District Council,08/02/2018,446728,711.68,,Hr Go (Kent) Ltd,HRG001,Operational Services,Revenue,Agency Staff,Human Resources
http://statistics.data.gov.uk/search?search=E07000114,Thanet District Council,08/02/2018,447121,-1829.40,,Hr Go (Kent) Ltd,HRG001,Operational Services,Revenue,Agency Staff,Human Resources
http://statistics.data.gov.uk/search?search=E07000114,Thanet District Council,08/02/2018,447122,522.44,,Hr Go (Kent) Ltd,HRG001,Operational Services,Revenue,Agency Staff,Human Resources
http://statistics.data.gov.uk/search?search=E07000114,Thanet District Council,08/02/2018,447126,2425.02,,Hr Go (Kent) Ltd,HRG001,Operational Services,Revenue,Agency Staff,Human Resources
http://statistics.data.gov.uk/search?search=E07000114,Thanet District Council,08/02/2018,447296,670.81,,Hr Go (Kent) Ltd,HRG001,Operational Services,Revenue,Agency Staff,Human Resources
http://statistics.data.gov.uk/search?search=E07000114,Thanet District Council,08/02/2018,446619,1245.00,,Keith Tait,TAI001,Operational Services,Revenue,Grounds Mtce Costs,Horticultural
http://statistics.data.gov.uk/search?search=E07000114,Thanet District Council,08/02/2018,446620,1495.00,,Keith Tait,TAI001,Operational Services,Revenue,Grounds Mtce Costs,Horticultural
http://statistics.data.gov.uk/search?search=E07000114,Thanet District Council,08/02/2018,446621,795.00,,Keith Tait,TAI001,Operational Services,Revenue,Grounds Mtce Costs,Horticultural
http://statistics.data.gov.uk/search?search=E07000114,Thanet District Council,08/02/2018,447114,604.95,,Loomis Uk Ltd,LOO002,Operational Services,Revenue,Services,Financial Services
http://statistics.data.gov.uk/search?search=E07000114,Thanet District Council,08/02/2018,446894,427.74,,Mears Ltd,MEA003,Corporate Governance,Revenue,"Repairs,  Alter & Mtce - Build",Construction-Repair And Maint
http://statistics.data.gov.uk/search?search=E07000114,Thanet District Council,08/02/2018,446894,927.36,,Mears Ltd,MEA003,Operational Services,Revenue,"Repairs,  Alter & Mtce - Build",Construction-Repair And Maint
http://statistics.data.gov.uk/search?search=E07000114,Thanet District Council,08/02/2018,447133,427.74,,Mears Ltd,MEA003,Corporate Governance,Revenue,"Repairs,  Alter & Mtce - Build",Construction-Repair And Maint
http://statistics.data.gov.uk/search?search=E07000114,Thanet District Council,08/02/2018,447133,927.36,,Mears Ltd,MEA003,Operational Services,Revenue,"Repairs,  Alter & Mtce - Build",Construction-Repair And Maint
http://statistics.data.gov.uk/search?search=E07000114,Thanet District Council,08/02/2018,447134,260.72,,Mears Ltd,MEA003,Corporate Governance,Revenue,"Repairs,  Alter & Mtce - Build",Construction-Repair And Maint
http://statistics.data.gov.uk/search?search=E07000114,Thanet District Council,08/02/2018,447137,1551.55,,Patrol,PAT004,Operational Services,Revenue,Services,Street And Traffic Management
http://statistics.data.gov.uk/search?search=E07000114,Thanet District Council,08/02/2018,447002,12147.48,,Scottish Water Business Stream Ltd,SCO019,Operational Services,Revenue,Water Services,Utilities
http://statistics.data.gov.uk/search?search=E07000114,Thanet District Council,08/02/2018,447941,-374.53,,Scottish Water Business Stream Ltd,SCO019,Operational Services,Revenue,Water Services,Utilities
http://statistics.data.gov.uk/search?search=E07000114,Thanet District Council,08/02/2018,446941,491.82,,Sellick Partnership Ltd,SEL011,Corporate Governance,Revenue,Services,Human Resources
http://statistics.data.gov.uk/search?search=E07000114,Thanet District Council,08/02/2018,447936,451.17,,Southern Electric,SEL007,Operational Services,Revenue,Energy Costs,Utilities
http://statistics.data.gov.uk/search?search=E07000114,Thanet District Council,08/02/2018,447948,-252.46,,Southern Electric,SEL007,Community Services,Revenue,Energy Costs,Utilities
http://statistics.data.gov.uk/search?search=E07000114,Thanet District Council,08/02/2018,448245,1040.00,,Strategic Integration Limited,STR037,Corporate Resources and S151,Revenue,Services,ICT
http://statistics.data.gov.uk/search?search=E07000114,Thanet District Council,13/02/2018,448008,688.00,,123hr Limited,123003,Corporate Resources and S151,Balance Sheet,Plant And Equipment,ICT
http://statistics.data.gov.uk/search?search=E07000114,Thanet District Council,13/02/2018,447957,2860.00,,A R Twigg & Son Ltd,TWI001,Operational Services,Revenue,"Equip, Furniture And Materials",Cemetery And Crematorium
http://statistics.data.gov.uk/search?search=E07000114,Thanet District Council,13/02/2018,447905,815.00,,All About Asbestos Limited,ALL044,Corporate Governance,Revenue,"Repairs,  Alter & Mtce - Build",Environmental Services
http://statistics.data.gov.uk/search?search=E07000114,Thanet District Council,13/02/2018,447908,605.00,,All About Asbestos Limited,ALL044,Corporate Governance,Revenue,"Repairs,  Alter & Mtce - Build",Environmental Services
http://statistics.data.gov.uk/search?search=E07000114,Thanet District Council,13/02/2018,447909,2025.00,,All About Asbestos Limited,ALL044,Corporate Governance,Revenue,"Repairs,  Alter & Mtce - Build",Environmental Services
http://statistics.data.gov.uk/search?search=E07000114,Thanet District Council,13/02/2018,448060,12520.00,,Allen Scott Ltd,ALL046,Operational Services,Revenue,Services,Construction-Repair And Maint
http://statistics.data.gov.uk/search?search=E07000114,Thanet District Council,13/02/2018,447953,285.00,,Andy Morris,MOR028,Community Services,Revenue,Services,Arts And Leisure Services
http://statistics.data.gov.uk/search?search=E07000114,Thanet District Council,13/02/2018,447954,270.00,,Andy Morris,MOR028,Community Services,Revenue,Services,Arts And Leisure Services
http://statistics.data.gov.uk/search?search=E07000114,Thanet District Council,13/02/2018,447188,964.76,,Bes Commercial Electricity Ltd,BES004,Corporate Governance,Revenue,Energy Costs,Utilities
http://statistics.data.gov.uk/search?search=E07000114,Thanet District Council,13/02/2018,447991,260.00,,Birchington Village Centre Association,BIR008,Corporate Governance,Revenue,Rents,Facilities And Mangement Serv
http://statistics.data.gov.uk/search?search=E07000114,Thanet District Council,13/02/2018,447460,1590.00,,Bridge Security Cctv Ltd,BRI039,Corporate Governance,Revenue,Services,Facilities And Mangement Serv
http://statistics.data.gov.uk/search?search=E07000114,Thanet District Council,13/02/2018,447841,8326.70,,Burgess Marine Ltd In Administration,BUR017,Operational Services,Revenue,"Repairs,  Alter & Mtce - Build",Maritime Services
http://statistics.data.gov.uk/search?search=E07000114,Thanet District Council,13/02/2018,447888,2347.77,,Burgess Marine Ltd In Administration,BUR017,Operational Services,Revenue,"Repairs,  Alter & Mtce - Build",Maritime Services
http://statistics.data.gov.uk/search?search=E07000114,Thanet District Council,13/02/2018,448007,425.00,,Burgess Marine Ltd In Administration,BUR017,Corporate Resources and S151,Balance Sheet,Rechargeable Works,Maritime Services
http://statistics.data.gov.uk/search?search=E07000114,Thanet District Council,13/02/2018,448165,24236.00,,Callcredit Limited,CAL009,East Kent Shared Services,Revenue,Communications & Computing,Financial Services
http://statistics.data.gov.uk/search?search=E07000114,Thanet District Council,13/02/2018,448208,495.00,,Canon (Uk) Ltd,CAN021,Corporate Governance,Revenue,"Equip, Furniture And Materials",Facilities And Mangement Serv
http://statistics.data.gov.uk/search?search=E07000114,Thanet District Council,13/02/2018,448221,832.06,,Canon (Uk) Ltd,CAN021,Corporate Governance,Revenue,"Equip, Furniture And Materials",Facilities And Mangement Serv
http://statistics.data.gov.uk/search?search=E07000114,Thanet District Council,13/02/2018,447087,7600.00,,Ceas Kent Ltd,CEA001,Operational Services,Revenue,"Equip, Furniture And Materials",Facilities And Mangement Serv
http://statistics.data.gov.uk/search?search=E07000114,Thanet District Council,13/02/2018,448011,507.50,,Clague Llp,CLA038,Operational Services,Revenue,Services,Construction-Repair And Maint
http://statistics.data.gov.uk/search?search=E07000114,Thanet District Council,13/02/2018,447546,1272.00,,Cobalt Consulting (Uk) Limited,COB004,Corporate Governance,Revenue,Agency Staff,Human Resources
http://statistics.data.gov.uk/search?search=E07000114,Thanet District Council,13/02/2018,447547,1696.00,,Cobalt Consulting (Uk) Limited,COB004,Corporate Governance,Revenue,Agency Staff,Human Resources
http://statistics.data.gov.uk/search?search=E07000114,Thanet District Council,13/02/2018,447466,2722.25,,Commercial Services Trading Ltd,COM048,Operational Services,Revenue,Cont Hire & Operating Lease,Various Cats-Public Sector
http://statistics.data.gov.uk/search?search=E07000114,Thanet District Council,13/02/2018,447467,2722.25,,Commercial Services Trading Ltd,COM048,Operational Services,Revenue,Cont Hire & Operating Lease,Various Cats-Public Sector
http://statistics.data.gov.uk/search?search=E07000114,Thanet District Council,13/02/2018,448166,240.55,,Corporate Direct (Europe) Ltd,COR006,East Kent Shared Services,Revenue,Communications & Computing,ICT
http://statistics.data.gov.uk/search?search=E07000114,Thanet District Council,13/02/2018,447311,385.64,,Dennis Eagle Ltd,DEN005,Operational Services,Revenue,Direct Transport Costs,Vehicle Management
http://statistics.data.gov.uk/search?search=E07000114,Thanet District Council,13/02/2018,447501,237.34,,Dennis Eagle Ltd,DEN005,Operational Services,Revenue,Direct Transport Costs,Vehicle Management
http://statistics.data.gov.uk/search?search=E07000114,Thanet District Council,13/02/2018,447883,257.24,,Dennis Eagle Ltd,DEN005,Operational Services,Revenue,Direct Transport Costs,Vehicle Management
http://statistics.data.gov.uk/search?search=E07000114,Thanet District Council,13/02/2018,448021,264.00,,Disclosure And Barring Service,DIS017,Community Services,Revenue,"Equip, Furniture And Materials",Human Resources
http://statistics.data.gov.uk/search?search=E07000114,Thanet District Council,13/02/2018,447973,1925.00,,Dixon Searle Partnership Limited,DIX007,Community Services,Revenue,Services,Consultancy
http://statistics.data.gov.uk/search?search=E07000114,Thanet District Council,13/02/2018,448328,1350.00,,Dr Alexander Marshall,MAR100,Operational Services,Revenue,Services,Cemetery And Crematorium
http://statistics.data.gov.uk/search?search=E07000114,Thanet District Council,13/02/2018,447481,1057.51,,E Saunders Margate Ltd,SAU001,Operational Services,Revenue,"Repairs,  Alter & Mtce - Build",Construction-Repair And Maint
http://statistics.data.gov.uk/search?search=E07000114,Thanet District Council,13/02/2018,447970,442.26,,E Saunders Margate Ltd,SAU001,Operational Services,Revenue,"Repairs,  Alter & Mtce - Build",Construction-Repair And Maint
http://statistics.data.gov.uk/search?search=E07000114,Thanet District Council,13/02/2018,447929,299.45,,Egbert H Taylor & Company Ltd,TAY005,Operational Services,Revenue,"Equip, Furniture And Materials",Environmental Services
http://statistics.data.gov.uk/search?search=E07000114,Thanet District Council,13/02/2018,447766,520.40,,Electrical Lighting Solutions Ltd,ELE013,Operational Services,Revenue,"Repairs,  Alter & Mtce - Build",Building Construction Material
http://statistics.data.gov.uk/search?search=E07000114,Thanet District Council,13/02/2018,447768,383.64,,Electrical Lighting Solutions Ltd,ELE013,Operational Services,Revenue,"Repairs,  Alter & Mtce - Build",Building Construction Material
http://statistics.data.gov.uk/search?search=E07000114,Thanet District Council,13/02/2018,448238,661.98,,Electrical Lighting Solutions Ltd,ELE013,Operational Services,Revenue,"Repairs,  Alter & Mtce - Build",Building Construction Material
http://statistics.data.gov.uk/search?search=E07000114,Thanet District Council,13/02/2018,448239,677.68,,Electrical Lighting Solutions Ltd,ELE013,Operational Services,Revenue,"Repairs,  Alter & Mtce - Build",Building Construction Material
http://statistics.data.gov.uk/search?search=E07000114,Thanet District Council,13/02/2018,448053,256.30,,Ernest Doe & Sons Ltd,ERN003,Operational Services,Revenue,"Equip, Furniture And Materials",Horticultural
http://statistics.data.gov.uk/search?search=E07000114,Thanet District Council,13/02/2018,447987,633.00,,Estuary Services Ltd,EST002,Operational Services,Revenue,Cont Hire & Operating Lease,Maritime Services
http://statistics.data.gov.uk/search?search=E07000114,Thanet District Council,13/02/2018,448275,671.03,,Farrer Barnes Limited,FAR012,Corporate Resources and S151,Revenue,Agency Staff,Human Resources
http://statistics.data.gov.uk/search?search=E07000114,Thanet District Council,13/02/2018,448276,630.70,,Farrer Barnes Limited,FAR012,Corporate Resources and S151,Revenue,Agency Staff,Human Resources
http://statistics.data.gov.uk/search?search=E07000114,Thanet District Council,13/02/2018,448404,1710.00,,Fleet (Line Markers) Ltd,FLE008,Operational Services,Revenue,"Equip, Furniture And Materials",Horticultural
http://statistics.data.gov.uk/search?search=E07000114,Thanet District Council,13/02/2018,447972,1675.00,,Freeflow Limited,FRE010,Operational Services,Revenue,"Repairs,  Alter & Mtce - Build",Building Construction Material
http://statistics.data.gov.uk/search?search=E07000114,Thanet District Council,13/02/2018,447304,1400.00,,Gva Grimley Limited,GVA001,Corporate Resources and S151,Balance Sheet,Other Land And Buildings-Hra,Consultancy
http://statistics.data.gov.uk/search?search=E07000114,Thanet District Council,13/02/2018,448397,255.00,,H M Courts & Tribunal Service,HMC003,Community Services,Revenue,Services,Financial Services
http://statistics.data.gov.uk/search?search=E07000114,Thanet District Council,13/02/2018,447813,310.68,,Hands On Suppliers Ltd,HAN007,Operational Services,Revenue,"Equip, Furniture And Materials",Clothing
http://statistics.data.gov.uk/search?search=E07000114,Thanet District Council,13/02/2018,447912,1624.89,,Haynes Of Maidstone Ltd,HAY008,Operational Services,Revenue,Direct Transport Costs,Vehicle Management
http://statistics.data.gov.uk/search?search=E07000114,Thanet District Council,13/02/2018,448202,278.64,,Hire Station Limited,HIR001,Operational Services,Revenue,"Equip, Furniture And Materials",Building Construction Material
http://statistics.data.gov.uk/search?search=E07000114,Thanet District Council,13/02/2018,447428,775.37,,Hr Go (Kent) Ltd,HRG001,Operational Services,Revenue,Agency Staff,Human Resources
http://statistics.data.gov.uk/search?search=E07000114,Thanet District Council,13/02/2018,447429,5495.22,,Hr Go (Kent) Ltd,HRG001,Operational Services,Revenue,Agency Staff,Human Resources
http://statistics.data.gov.uk/search?search=E07000114,Thanet District Council,13/02/2018,447488,6949.87,,Hr Go (Kent) Ltd,HRG001,Operational Services,Revenue,Agency Staff,Human Resources
http://statistics.data.gov.uk/search?search=E07000114,Thanet District Council,13/02/2018,447491,824.28,,Hr Go (Kent) Ltd,HRG001,Operational Services,Revenue,Agency Staff,Human Resources
http://statistics.data.gov.uk/search?search=E07000114,Thanet District Council,13/02/2018,447556,512.80,,Hr Go (Kent) Ltd,HRG001,Operational Services,Revenue,Agency Staff,Human Resources
http://statistics.data.gov.uk/search?search=E07000114,Thanet District Council,13/02/2018,447559,670.81,,Hr Go (Kent) Ltd,HRG001,Operational Services,Revenue,Agency Staff,Human Resources
http://statistics.data.gov.uk/search?search=E07000114,Thanet District Council,13/02/2018,447560,816.75,,Hr Go (Kent) Ltd,HRG001,Operational Services,Revenue,Agency Staff,Human Resources
http://statistics.data.gov.uk/search?search=E07000114,Thanet District Council,13/02/2018,447563,522.44,,Hr Go (Kent) Ltd,HRG001,Operational Services,Revenue,Agency Staff,Human Resources
http://statistics.data.gov.uk/search?search=E07000114,Thanet District Council,13/02/2018,447742,410.24,,Hr Go (Kent) Ltd,HRG001,Operational Services,Revenue,Agency Staff,Human Resources
http://statistics.data.gov.uk/search?search=E07000114,Thanet District Council,13/02/2018,447956,960.89,,Hr Go (Kent) Ltd,HRG001,Operational Services,Revenue,Agency Staff,Human Resources
http://statistics.data.gov.uk/search?search=E07000114,Thanet District Council,13/02/2018,447959,449.55,,Hr Go (Kent) Ltd,HRG001,Operational Services,Revenue,Agency Staff,Human Resources
http://statistics.data.gov.uk/search?search=E07000114,Thanet District Council,13/02/2018,447959,249.99,,Hr Go (Kent) Ltd,HRG001,Operational Services,Revenue,Services,Human Resources
http://statistics.data.gov.uk/search?search=E07000114,Thanet District Council,13/02/2018,447960,512.80,,Hr Go (Kent) Ltd,HRG001,Operational Services,Revenue,Agency Staff,Human Resources
http://statistics.data.gov.uk/search?search=E07000114,Thanet District Council,13/02/2018,447961,1193.25,,Hr Go (Kent) Ltd,HRG001,Operational Services,Revenue,Agency Staff,Human Resources
http://statistics.data.gov.uk/search?search=E07000114,Thanet District Council,13/02/2018,447962,881.90,,Hr Go (Kent) Ltd,HRG001,Operational Services,Revenue,Agency Staff,Human Resources
http://statistics.data.gov.uk/search?search=E07000114,Thanet District Council,13/02/2018,447811,1159.50,,Hydraquip Hose & Hydraulics,HYD003,Operational Services,Revenue,"Repairs,  Alter & Mtce - Build",Vehicle Management
http://statistics.data.gov.uk/search?search=E07000114,Thanet District Council,13/02/2018,447808,47623.09,,Kent County Council Re Pension Fund,KCC001,Corporate Resources and S151,Revenue,Severance Payments,Financial Services
http://statistics.data.gov.uk/search?search=E07000114,Thanet District Council,13/02/2018,447938,1030.71,,L W Burt & Son Ltd,BUR027,Corporate Governance,Revenue,"Repairs,  Alter & Mtce - Build",Construction-Repair And Maint
http://statistics.data.gov.uk/search?search=E07000114,Thanet District Council,13/02/2018,447939,417.96,,L W Burt & Son Ltd,BUR027,Community Services,Revenue,"Repairs,  Alter & Mtce - Build",Construction-Repair And Maint
http://statistics.data.gov.uk/search?search=E07000114,Thanet District Council,13/02/2018,447940,552.70,,L W Burt & Son Ltd,BUR027,Community Services,Revenue,"Repairs,  Alter & Mtce - Build",Construction-Repair And Maint
http://statistics.data.gov.uk/search?search=E07000114,Thanet District Council,13/02/2018,447942,1642.00,,L W Burt & Son Ltd,BUR027,Corporate Governance,Revenue,"Repairs,  Alter & Mtce - Build",Construction-Repair And Maint
http://statistics.data.gov.uk/search?search=E07000114,Thanet District Council,13/02/2018,447943,454.71,,L W Burt & Son Ltd,BUR027,Corporate Governance,Revenue,"Repairs,  Alter & Mtce - Build",Construction-Repair And Maint
http://statistics.data.gov.uk/search?search=E07000114,Thanet District Council,13/02/2018,447937,423.82,,Ling Metals Limited,LIN004,Operational Services,Revenue,Cleaning & Domestic Supplies,Environmental Services
http://statistics.data.gov.uk/search?search=E07000114,Thanet District Council,13/02/2018,447985,1079.72,,Lobster Van Hire Ltd,LOB001,Operational Services,Revenue,Cont Hire & Operating Lease,Vehicle Management
http://statistics.data.gov.uk/search?search=E07000114,Thanet District Council,13/02/2018,447307,24.00,,Lyreco Uk Limited,LYR001,Community Services,Revenue,"Print, Stat And Gen Off Exps",Stationery
http://statistics.data.gov.uk/search?search=E07000114,Thanet District Council,13/02/2018,447307,72.84,,Lyreco Uk Limited,LYR001,Operational Services,Revenue,"Equip, Furniture And Materials",Stationery
http://statistics.data.gov.uk/search?search=E07000114,Thanet District Council,13/02/2018,447307,160.74,,Lyreco Uk Limited,LYR001,Operational Services,Revenue,"Print, Stat And Gen Off Exps",Stationery
http://statistics.data.gov.uk/search?search=E07000114,Thanet District Council,13/02/2018,447307,121.12,,Lyreco Uk Limited,LYR001,East Kent Shared Services,Revenue,"Equip, Furniture And Materials",Stationery
http://statistics.data.gov.uk/search?search=E07000114,Thanet District Council,13/02/2018,447590,513.04,,Lyreco Uk Limited,LYR001,Operational Services,Revenue,"Print, Stat And Gen Off Exps",Stationery
http://statistics.data.gov.uk/search?search=E07000114,Thanet District Council,13/02/2018,447951,511.25,,Lyreco Uk Limited,LYR001,Corporate Governance,Revenue,"Print, Stat And Gen Off Exps",Stationery
http://statistics.data.gov.uk/search?search=E07000114,Thanet District Council,13/02/2018,447509,212.19,,Mears Ltd,MEA003,Community Services,Revenue,"Repairs,  Alter & Mtce - Build",Construction-Repair And Maint
http://statistics.data.gov.uk/search?search=E07000114,Thanet District Council,13/02/2018,447509,6851.53,,Mears Ltd,MEA003,Corporate Governance,Revenue,"Repairs,  Alter & Mtce - Build",Construction-Repair And Maint
http://statistics.data.gov.uk/search?search=E07000114,Thanet District Council,13/02/2018,447509,424.38,,Mears Ltd,MEA003,Operational Services,Revenue,"Repairs,  Alter & Mtce - Build",Construction-Repair And Maint
http://statistics.data.gov.uk/search?search=E07000114,Thanet District Council,13/02/2018,447776,235.40,,Mears Ltd,MEA003,Operational Services,Revenue,"Repairs,  Alter & Mtce - Build",Construction-Repair And Maint
http://statistics.data.gov.uk/search?search=E07000114,Thanet District Council,13/02/2018,447986,225.00,,Med Clean South Ltd,MED015,Operational Services,Revenue,"Repairs,  Alter & Mtce - Build",Cleaning And Janitorial
http://statistics.data.gov.uk/search?search=E07000114,Thanet District Council,13/02/2018,447983,450.00,,Melanie Mcintosh,MCI005,Corporate Governance,Revenue,Services,Legal Services
http://statistics.data.gov.uk/search?search=E07000114,Thanet District Council,13/02/2018,447816,280.00,,N K F Seymour Electrical Cont,SEY002,Community Services,Revenue,Services,Building Construction Material
http://statistics.data.gov.uk/search?search=E07000114,Thanet District Council,13/02/2018,448223,750.00,,Norfolk County Council,NCC002,Corporate Resources and S151,Balance Sheet,Other Land And Buildings-Hra,Various Cats-Public Sector
http://statistics.data.gov.uk/search?search=E07000114,Thanet District Council,13/02/2018,447555,1056.45,,Ntm-Gb Limited,NTM001,Operational Services,Revenue,Direct Transport Costs,Vehicle Management
http://statistics.data.gov.uk/search?search=E07000114,Thanet District Council,13/02/2018,448173,295.00,,Oakover Nurseries Ltd,OAK003,Operational Services,Revenue,"Equip, Furniture And Materials",Horticultural
http://statistics.data.gov.uk/search?search=E07000114,Thanet District Council,13/02/2018,447984,782.86,,Ohuk Limited,OHU001,Operational Services,Revenue,Agency Staff,Human Resources
http://statistics.data.gov.uk/search?search=E07000114,Thanet District Council,13/02/2018,447581,88140.00,,Overton (Uk) Ltd,OVE004,Corporate Resources and S151,Balance Sheet,Plant And Equipment,Vehicle Management
http://statistics.data.gov.uk/search?search=E07000114,Thanet District Council,13/02/2018,447975,1515.90,,Parkeon Limited,PAR063,Operational Services,Revenue,"Equip, Furniture And Materials",Street And Traffic Management
http://statistics.data.gov.uk/search?search=E07000114,Thanet District Council,13/02/2018,448278,8480.00,,Penna Plc,PEN008,Corporate Resources and S151,Revenue,Services,Human Resources
http://statistics.data.gov.uk/search?search=E07000114,Thanet District Council,13/02/2018,445666,596.14,,Posturite Ltd,POS010,East Kent Shared Services,Revenue,"Equip, Furniture And Materials",Health And Safety
http://statistics.data.gov.uk/search?search=E07000114,Thanet District Council,13/02/2018,446203,611.15,,Posturite Ltd,POS010,East Kent Shared Services,Revenue,"Equip, Furniture And Materials",Health And Safety
http://statistics.data.gov.uk/search?search=E07000114,Thanet District Council,13/02/2018,448003,4600.00,,Powell Williams Llp,POW022,Operational Services,Revenue,"Repairs,  Alter & Mtce - Build",Construction-Repair And Maint
http://statistics.data.gov.uk/search?search=E07000114,Thanet District Council,13/02/2018,447773,24021.26,,Profile Security Services Limited,PRO018,Operational Services,Revenue,Services,Facilities And Mangement Serv
http://statistics.data.gov.uk/search?search=E07000114,Thanet District Council,13/02/2018,447774,900.98,,Profile Security Services Limited,PRO018,Operational Services,Revenue,Services,Facilities And Mangement Serv
http://statistics.data.gov.uk/search?search=E07000114,Thanet District Council,13/02/2018,448399,1300.00,,Prospects Assured Uk Ltd,PRO032,Community Services,Revenue,Grants & Subscriptions,Rent Deposits
http://statistics.data.gov.uk/search?search=E07000114,Thanet District Council,13/02/2018,448340,529.70,,Quinneys Fencing & Sect Building Man,QUI001,Operational Services,Revenue,"Repairs,  Alter & Mtce - Build",Building Construction Material
http://statistics.data.gov.uk/search?search=E07000114,Thanet District Council,13/02/2018,446789,752.50,,R Cannon,CAN007,Operational Services,Revenue,Services,Maritime Services
http://statistics.data.gov.uk/search?search=E07000114,Thanet District Council,13/02/2018,446791,400.00,,R Cannon,CAN007,Operational Services,Revenue,"Equip, Furniture And Materials",Maritime Services
http://statistics.data.gov.uk/search?search=E07000114,Thanet District Council,13/02/2018,447843,350.00,,R Cannon,CAN007,Operational Services,Revenue,Services,Maritime Services
http://statistics.data.gov.uk/search?search=E07000114,Thanet District Council,13/02/2018,448010,250.00,,R J Broadley Tree Surgery,RJB002,Operational Services,Revenue,"Repairs,  Alter & Mtce - Build",Horticultural
http://statistics.data.gov.uk/search?search=E07000114,Thanet District Council,13/02/2018,447992,721.50,,R S S (Wessex) Limited,RSS002,Operational Services,Revenue,Agency Staff,Human Resources
http://statistics.data.gov.uk/search?search=E07000114,Thanet District Council,13/02/2018,447955,940.70,,Sellick Partnership Ltd,SEL011,Corporate Governance,Revenue,Services,Human Resources
http://statistics.data.gov.uk/search?search=E07000114,Thanet District Council,13/02/2018,447974,1917.00,,Sellick Partnership Ltd,SEL011,Corporate Governance,Revenue,Services,Human Resources
http://statistics.data.gov.uk/search?search=E07000114,Thanet District Council,13/02/2018,448242,323.82,,Sellick Partnership Ltd,SEL011,Corporate Governance,Revenue,Services,Human Resources
http://statistics.data.gov.uk/search?search=E07000114,Thanet District Council,13/02/2018,447971,1309.68,,Signway Supplies (Datchet) Limited,SIG013,Operational Services,Revenue,"Repairs,  Alter & Mtce - Build",Highway Equipment And Material
http://statistics.data.gov.uk/search?search=E07000114,Thanet District Council,13/02/2018,448406,6672.51,,South East Adaptations Limited,SOU026,Corporate Resources and S151,Balance Sheet,Capital Exp-Non Council Assets,Grants
http://statistics.data.gov.uk/search?search=E07000114,Thanet District Council,13/02/2018,447415,313.31,,Southern Electric,SEL007,Operational Services,Revenue,Energy Costs,Utilities
http://statistics.data.gov.uk/search?search=E07000114,Thanet District Council,13/02/2018,448182,-313.31,,Southern Electric,SEL007,Operational Services,Revenue,Energy Costs,Utilities
http://statistics.data.gov.uk/search?search=E07000114,Thanet District Council,13/02/2018,447580,800.30,,Stokes Bros,STO001,Operational Services,Revenue,"Repairs,  Alter & Mtce - Build",Building Construction Material
http://statistics.data.gov.uk/search?search=E07000114,Thanet District Council,13/02/2018,447812,251.00,,Tennants Distribution Limited,TEN005,Operational Services,Revenue,Direct Transport Costs,Vehicle Management
http://statistics.data.gov.uk/search?search=E07000114,Thanet District Council,13/02/2018,447475,17341.32,,The Colt Car Company Ltd,COL040,Corporate Resources and S151,Balance Sheet,Plant And Equipment,Vehicle Management
http://statistics.data.gov.uk/search?search=E07000114,Thanet District Council,13/02/2018,447475,295.00,,The Colt Car Company Ltd,COL040,Operational Services,Revenue,Direct Transport Costs,Vehicle Management
http://statistics.data.gov.uk/search?search=E07000114,Thanet District Council,13/02/2018,447476,17341.32,,The Colt Car Company Ltd,COL040,Corporate Resources and S151,Balance Sheet,Plant And Equipment,Vehicle Management
http://statistics.data.gov.uk/search?search=E07000114,Thanet District Council,13/02/2018,447476,295.00,,The Colt Car Company Ltd,COL040,Operational Services,Revenue,Direct Transport Costs,Vehicle Management
http://statistics.data.gov.uk/search?search=E07000114,Thanet District Council,13/02/2018,447477,17341.32,,The Colt Car Company Ltd,COL040,Corporate Resources and S151,Balance Sheet,Plant And Equipment,Vehicle Management
http://statistics.data.gov.uk/search?search=E07000114,Thanet District Council,13/02/2018,447477,295.00,,The Colt Car Company Ltd,COL040,Operational Services,Revenue,Direct Transport Costs,Vehicle Management
http://statistics.data.gov.uk/search?search=E07000114,Thanet District Council,13/02/2018,448405,500.00,,The Margate Bookie Limited,MAR109,Community Services,Revenue,Grants & Subscriptions,Grants
http://statistics.data.gov.uk/search?search=E07000114,Thanet District Council,13/02/2018,447999,390.00,,The Yaboo Company Limited,YAB001,Operational Services,Revenue,"Equip, Furniture And Materials",Domestic Goods
http://statistics.data.gov.uk/search?search=E07000114,Thanet District Council,13/02/2018,447615,363.33,,Thorley Taverns Ltd,THO001,Operational Services,Revenue,Catering,Facilities And Mangement Serv
http://statistics.data.gov.uk/search?search=E07000114,Thanet District Council,13/02/2018,448012,6599.25,,Topdesk Uk Limited,TOP011,East Kent Shared Services,Revenue,Communications & Computing,ICT
http://statistics.data.gov.uk/search?search=E07000114,Thanet District Council,13/02/2018,447855,750.00,,Townsends Engineering Ltd,TOW016,Operational Services,Revenue,"Repairs,  Alter & Mtce - Build",Construction-Repair And Maint
http://statistics.data.gov.uk/search?search=E07000114,Thanet District Council,13/02/2018,447856,778.00,,Townsends Engineering Ltd,TOW016,Operational Services,Revenue,"Repairs,  Alter & Mtce - Build",Construction-Repair And Maint
http://statistics.data.gov.uk/search?search=E07000114,Thanet District Council,13/02/2018,447858,220.00,,Townsends Engineering Ltd,TOW016,Operational Services,Revenue,"Repairs,  Alter & Mtce - Build",Construction-Repair And Maint
http://statistics.data.gov.uk/search?search=E07000114,Thanet District Council,13/02/2018,447859,1760.00,,Townsends Engineering Ltd,TOW016,Operational Services,Revenue,"Repairs,  Alter & Mtce - Build",Construction-Repair And Maint
http://statistics.data.gov.uk/search?search=E07000114,Thanet District Council,13/02/2018,447860,1520.00,,Townsends Engineering Ltd,TOW016,Operational Services,Revenue,"Repairs,  Alter & Mtce - Build",Construction-Repair And Maint
http://statistics.data.gov.uk/search?search=E07000114,Thanet District Council,13/02/2018,448018,924.00,,Veale Wasbrough Vizards Llp,VEA001,Operational Services,Revenue,Services,Legal Services
http://statistics.data.gov.uk/search?search=E07000114,Thanet District Council,13/02/2018,447900,16660.00,,Watling Jcb Limited,WAT024,Corporate Resources and S151,Balance Sheet,Plant And Equipment,Vehicle Management
http://statistics.data.gov.uk/search?search=E07000114,Thanet District Council,13/02/2018,447900,220.00,,Watling Jcb Limited,WAT024,Operational Services,Revenue,Direct Transport Costs,Vehicle Management
http://statistics.data.gov.uk/search?search=E07000114,Thanet District Council,13/02/2018,447901,50000.00,,Watling Jcb Limited,WAT024,Corporate Resources and S151,Balance Sheet,Plant And Equipment,Vehicle Management
http://statistics.data.gov.uk/search?search=E07000114,Thanet District Council,13/02/2018,447901,220.00,,Watling Jcb Limited,WAT024,Operational Services,Revenue,Direct Transport Costs,Vehicle Management
http://statistics.data.gov.uk/search?search=E07000114,Thanet District Council,13/02/2018,447902,25055.00,,Watling Jcb Limited,WAT024,Corporate Resources and S151,Balance Sheet,Plant And Equipment,Vehicle Management
http://statistics.data.gov.uk/search?search=E07000114,Thanet District Council,13/02/2018,447902,220.00,,Watling Jcb Limited,WAT024,Operational Services,Revenue,Direct Transport Costs,Vehicle Management
http://statistics.data.gov.uk/search?search=E07000114,Thanet District Council,13/02/2018,447903,40050.00,,Watling Jcb Limited,WAT024,Corporate Resources and S151,Balance Sheet,Plant And Equipment,Vehicle Management
http://statistics.data.gov.uk/search?search=E07000114,Thanet District Council,13/02/2018,447903,220.00,,Watling Jcb Limited,WAT024,Operational Services,Revenue,Direct Transport Costs,Vehicle Management
http://statistics.data.gov.uk/search?search=E07000114,Thanet District Council,13/02/2018,447907,156580.00,,Watling Jcb Limited,WAT024,Corporate Resources and S151,Balance Sheet,Plant And Equipment,Vehicle Management
http://statistics.data.gov.uk/search?search=E07000114,Thanet District Council,13/02/2018,447907,220.00,,Watling Jcb Limited,WAT024,Operational Services,Revenue,Direct Transport Costs,Vehicle Management
http://statistics.data.gov.uk/search?search=E07000114,Thanet District Council,13/02/2018,448403,500.00,,Your Leisure Kent Limited,YOU016,Community Services,Revenue,Grants & Subscriptions,Arts And Leisure Services
http://statistics.data.gov.uk/search?search=E07000114,Thanet District Council,14/02/2018,448523,13750.00,,Ace Recruitment (Uk) Ltd,ACE005,Operational Services,Revenue,Agency Staff,Human Resources
http://statistics.data.gov.uk/search?search=E07000114,Thanet District Council,14/02/2018,447558,891.98,,Hr Go (Kent) Ltd,HRG001,Operational Services,Revenue,Agency Staff,Human Resources
http://statistics.data.gov.uk/search?search=E07000114,Thanet District Council,14/02/2018,447469,5750.00,,Luv Corp Ltd,LUV001,Corporate Resources and S151,Revenue,Services,ICT
http://statistics.data.gov.uk/search?search=E07000114,Thanet District Council,14/02/2018,447585,1389.04,,Mr Peter Barker,BAR059,East Kent Shared Services,Revenue,Services,Human Resources
http://statistics.data.gov.uk/search?search=E07000114,Thanet District Council,14/02/2018,446908,6250.00,,Otterham Consulting Limited,OTT004,Corporate Governance,Revenue,Services,Consultancy
http://statistics.data.gov.uk/search?search=E07000114,Thanet District Council,14/02/2018,446951,3850.00,,Paul Shadarevian,SHA031,Community Services,Revenue,Services,Human Resources
http://statistics.data.gov.uk/search?search=E07000114,Thanet District Council,14/02/2018,447323,315.00,,R Cannon,CAN007,Operational Services,Revenue,Services,Maritime Services
http://statistics.data.gov.uk/search?search=E07000114,Thanet District Council,15/02/2018,448570,2003081.46,,Civica Uk Ltd,CIV003,East Kent Shared Services,Revenue,Private Contractors,ICT
http://statistics.data.gov.uk/search?search=E07000114,Thanet District Council,19/02/2018,N/A,304.07,,Redacted Personal Data,N/A,Community Services,Revenue,Car Allowances,Non Trade Payee
http://statistics.data.gov.uk/search?search=E07000114,Thanet District Council,19/02/2018,N/A,221.29,,Redacted Personal Data,N/A,Community Services,Revenue,Car Allowances,Non Trade Payee
http://statistics.data.gov.uk/search?search=E07000114,Thanet District Council,19/02/2018,N/A,90.75,,Redacted Personal Data,N/A,Community Services,Revenue,Car Allowances,Non Trade Payee
http://statistics.data.gov.uk/search?search=E07000114,Thanet District Council,20/02/2018,448675,420.00,,Active Life Limited,ACT015,Community Services,Revenue,Grants & Subscriptions,Arts And Leisure Services
http://statistics.data.gov.uk/search?search=E07000114,Thanet District Council,20/02/2018,448541,641.55,,Adecco Uk Ltd,ADE005,Chief Executive,Revenue,Agency Staff,Human Resources
http://statistics.data.gov.uk/search?search=E07000114,Thanet District Council,20/02/2018,448636,641.55,,Adecco Uk Ltd,ADE005,Chief Executive,Revenue,Agency Staff,Human Resources
http://statistics.data.gov.uk/search?search=E07000114,Thanet District Council,20/02/2018,448580,475.00,,Albion Fencing&Construction Kent Ltd,ALB005,Operational Services,Revenue,"Equip, Furniture And Materials",Building Construction Material
http://statistics.data.gov.uk/search?search=E07000114,Thanet District Council,20/02/2018,447914,996.00,,Aston Walker,AST008,Community Services,Revenue,Services,Cemetery And Crematorium
http://statistics.data.gov.uk/search?search=E07000114,Thanet District Council,20/02/2018,445897,1011.18,,Calibre Cleaning Ltd,CAL010,Corporate Governance,Revenue,Cleaning & Domestic Supplies,Cleaning And Janitorial
http://statistics.data.gov.uk/search?search=E07000114,Thanet District Council,20/02/2018,448790,1370.00,,Campbell Associates Limited,CAM011,Community Services,Revenue,Services,Environmental Services
http://statistics.data.gov.uk/search?search=E07000114,Thanet District Council,20/02/2018,448020,1185.00,,Cipfa Business Ltd,CIP008,Corporate Resources and S151,Revenue,Grants & Subscriptions,Financial Services
http://statistics.data.gov.uk/search?search=E07000114,Thanet District Council,20/02/2018,447564,911.80,,Dennis Eagle Limited,TER011,Operational Services,Revenue,Direct Transport Costs,Vehicle Management
http://statistics.data.gov.uk/search?search=E07000114,Thanet District Council,20/02/2018,447777,336.06,,Dennis Eagle Limited,TER011,Operational Services,Revenue,Direct Transport Costs,Vehicle Management
http://statistics.data.gov.uk/search?search=E07000114,Thanet District Council,20/02/2018,448577,2206.00,,Dhfe Ltd,DHF001,Community Services,Revenue,"Equip, Furniture And Materials",Financial Services
http://statistics.data.gov.uk/search?search=E07000114,Thanet District Council,20/02/2018,448807,5700.00,,Dolphin Lifts Kent,DOL003,Corporate Resources and S151,Balance Sheet,Capital Exp-Non Council Assets,Grants
http://statistics.data.gov.uk/search?search=E07000114,Thanet District Council,20/02/2018,448739,565.56,,Dover District Council,DOV001,Community Services,Revenue,Expenses,Various Cats-Public Sector
http://statistics.data.gov.uk/search?search=E07000114,Thanet District Council,20/02/2018,448237,298.77,,E Saunders Margate Ltd,SAU001,Operational Services,Revenue,"Repairs,  Alter & Mtce - Build",Construction-Repair And Maint
http://statistics.data.gov.uk/search?search=E07000114,Thanet District Council,20/02/2018,447993,231.00,,East Kent Housing Ltd,EKH002,Community Services,Revenue,Communications & Computing,Housing Management
http://statistics.data.gov.uk/search?search=E07000114,Thanet District Council,20/02/2018,448061,1593.00,,Edge Enviro Services Ltd,EDG001,Operational Services,Revenue,Training,Human Resources
http://statistics.data.gov.uk/search?search=E07000114,Thanet District Council,20/02/2018,448550,8488.73,,F M Conway Ltd,CON043,Operational Services,Revenue,"Repairs,  Alter & Mtce - Build",Construction-Repair And Maint
http://statistics.data.gov.uk/search?search=E07000114,Thanet District Council,20/02/2018,447113,477.00,,Freight Transport Association,FRE007,Operational Services,Revenue,Training,Human Resources
http://statistics.data.gov.uk/search?search=E07000114,Thanet District Council,20/02/2018,448209,384.70,,G & G Forklifts,GGF001,Operational Services,Revenue,"Repairs,  Alter & Mtce - Build",Vehicle Management
http://statistics.data.gov.uk/search?search=E07000114,Thanet District Council,20/02/2018,448657,2470.00,,Hartwell Architects,HAR075,Corporate Resources and S151,Balance Sheet,Council Dwellings,Construction-Repair And Maint
http://statistics.data.gov.uk/search?search=E07000114,Thanet District Council,20/02/2018,448390,1029.50,,Hays Specialist Recruitment Ltd,HAY020,Community Services,Revenue,Agency Staff,Human Resources
http://statistics.data.gov.uk/search?search=E07000114,Thanet District Council,20/02/2018,448331,6270.00,,Herrington Consulting Ltd,HER012,Corporate Resources and S151,Balance Sheet,Infrastructure,Consultancy
http://statistics.data.gov.uk/search?search=E07000114,Thanet District Council,20/02/2018,448535,449.55,,Hr Go (Kent) Ltd,HRG001,Operational Services,Revenue,Agency Staff,Human Resources
http://statistics.data.gov.uk/search?search=E07000114,Thanet District Council,20/02/2018,448535,256.40,,Hr Go (Kent) Ltd,HRG001,Operational Services,Revenue,Services,Human Resources
http://statistics.data.gov.uk/search?search=E07000114,Thanet District Council,20/02/2018,448751,449.55,,Hr Go (Kent) Ltd,HRG001,Operational Services,Revenue,Agency Staff,Human Resources
http://statistics.data.gov.uk/search?search=E07000114,Thanet District Council,20/02/2018,448751,249.99,,Hr Go (Kent) Ltd,HRG001,Operational Services,Revenue,Services,Human Resources
http://statistics.data.gov.uk/search?search=E07000114,Thanet District Council,20/02/2018,448648,750.00,,James Davies,DAV031,Community Services,Revenue,"Equip, Furniture And Materials",Stationery
http://statistics.data.gov.uk/search?search=E07000114,Thanet District Council,20/02/2018,448800,692.50,,John Gale,GAL001,Corporate Resources and S151,Balance Sheet,Capital Exp-Non Council Assets,Grants
http://statistics.data.gov.uk/search?search=E07000114,Thanet District Council,20/02/2018,448801,719.60,,John Gale,GAL001,Corporate Resources and S151,Balance Sheet,Capital Exp-Non Council Assets,Grants
http://statistics.data.gov.uk/search?search=E07000114,Thanet District Council,20/02/2018,448802,2002.00,,John Gale,GAL001,Corporate Resources and S151,Balance Sheet,Capital Exp-Non Council Assets,Grants
http://statistics.data.gov.uk/search?search=E07000114,Thanet District Council,20/02/2018,448820,267237.00,,Kent & Medway Towns Fire Authority,KMT001,Corporate Resources and S151,Balance Sheet,Collection Fund - Preceptors,Various Cats-Public Sector
http://statistics.data.gov.uk/search?search=E07000114,Thanet District Council,20/02/2018,448184,3360.00,,Kent County Council,KCC002,Community Services,Revenue,Services,Various Cats-Public Sector
http://statistics.data.gov.uk/search?search=E07000114,Thanet District Council,20/02/2018,448821,4273992.00,,Kent County Council,KCC022,Corporate Resources and S151,Balance Sheet,Collection Fund - Preceptors,Various Cats-Public Sector
http://statistics.data.gov.uk/search?search=E07000114,Thanet District Council,20/02/2018,448215,418.00,,Kent Metro Ltd,KEN009,Operational Services,Revenue,Training,Human Resources
http://statistics.data.gov.uk/search?search=E07000114,Thanet District Council,20/02/2018,448819,566761.00,,Kent Police & Crime Commissioner,KPA003,Corporate Resources and S151,Balance Sheet,Collection Fund - Preceptors,Various Cats-Public Sector
http://statistics.data.gov.uk/search?search=E07000114,Thanet District Council,20/02/2018,448225,7480.00,,Kingdom Security Limited,KIN039,Operational Services,Revenue,Services,Street And Traffic Management
http://statistics.data.gov.uk/search?search=E07000114,Thanet District Council,20/02/2018,448327,1228.87,,Level 3 Communications (Uk) Ltd,LEV005,Corporate Resources and S151,Balance Sheet,Telephone Holding Account,ICT
http://statistics.data.gov.uk/search?search=E07000114,Thanet District Council,20/02/2018,447799,400.00,,Ling Metals Limited,LIN004,Operational Services,Revenue,Cont Hire & Operating Lease,Environmental Services
http://statistics.data.gov.uk/search?search=E07000114,Thanet District Council,20/02/2018,448809,2000.00,,Margate Carnival Group,MAR044,Community Services,Revenue,Grants & Subscriptions,Grants
http://statistics.data.gov.uk/search?search=E07000114,Thanet District Council,20/02/2018,448810,1000.00,,Margate Carnival Group,MAR044,Community Services,Revenue,Grants & Subscriptions,Grants
http://statistics.data.gov.uk/search?search=E07000114,Thanet District Council,20/02/2018,448339,2880.00,,Margate Football Club Ltd,MFC001,Community Services,Revenue,Rents,Arts And Leisure Services
http://statistics.data.gov.uk/search?search=E07000114,Thanet District Council,20/02/2018,448652,1044.90,,Martin Cranfield Associates,CRA004,Community Services,Revenue,Services,Environmental Services
http://statistics.data.gov.uk/search?search=E07000114,Thanet District Council,20/02/2018,448332,684.64,,Mears Ltd,MEA003,Corporate Resources and S151,Balance Sheet,Repairs And Mtce Holding A/C,Construction-Repair And Maint
http://statistics.data.gov.uk/search?search=E07000114,Thanet District Council,20/02/2018,448333,4861.39,,Mears Ltd,MEA003,Corporate Resources and S151,Balance Sheet,Repairs And Mtce Holding A/C,Construction-Repair And Maint
http://statistics.data.gov.uk/search?search=E07000114,Thanet District Council,20/02/2018,448604,12129.71,,Mears Ltd,MEA003,Corporate Resources and S151,Balance Sheet,Repairs And Mtce Holding A/C,Construction-Repair And Maint
http://statistics.data.gov.uk/search?search=E07000114,Thanet District Council,20/02/2018,448605,16030.90,,Mears Ltd,MEA003,Corporate Resources and S151,Balance Sheet,Repairs And Mtce Holding A/C,Construction-Repair And Maint
http://statistics.data.gov.uk/search?search=E07000114,Thanet District Council,20/02/2018,448606,5320.84,,Mears Ltd,MEA003,Corporate Resources and S151,Balance Sheet,Repairs And Mtce Holding A/C,Construction-Repair And Maint
http://statistics.data.gov.uk/search?search=E07000114,Thanet District Council,20/02/2018,448607,1684.57,,Mears Ltd,MEA003,Corporate Resources and S151,Balance Sheet,Repairs And Mtce Holding A/C,Construction-Repair And Maint
http://statistics.data.gov.uk/search?search=E07000114,Thanet District Council,20/02/2018,448611,98240.85,,Mears Ltd,MEA003,Community Services,Revenue,"Repairs,  Alter & Mtce - Build",Construction-Repair And Maint
http://statistics.data.gov.uk/search?search=E07000114,Thanet District Council,20/02/2018,448621,1760.00,,Mears Ltd,MEA003,Corporate Resources and S151,Balance Sheet,Council Dwellings,Construction-Repair And Maint
http://statistics.data.gov.uk/search?search=E07000114,Thanet District Council,20/02/2018,448645,1817.45,,Mears Ltd,MEA003,Community Services,Revenue,"Repairs,  Alter & Mtce - Build",Construction-Repair And Maint
http://statistics.data.gov.uk/search?search=E07000114,Thanet District Council,20/02/2018,448646,2784.31,,Mears Ltd,MEA003,Community Services,Revenue,"Repairs,  Alter & Mtce - Build",Construction-Repair And Maint
http://statistics.data.gov.uk/search?search=E07000114,Thanet District Council,20/02/2018,447552,343.00,,Midland Software Limited,MID013,East Kent Shared Services,Revenue,Communications & Computing,ICT
http://statistics.data.gov.uk/search?search=E07000114,Thanet District Council,20/02/2018,448780,69.16,,Mr Darren Osborne,OSB008,Community Services,Revenue,Cleaning & Domestic Supplies,Cleaning And Janitorial
http://statistics.data.gov.uk/search?search=E07000114,Thanet District Council,20/02/2018,448780,398.34,,Mr Darren Osborne,OSB008,Corporate Governance,Revenue,Cleaning & Domestic Supplies,Cleaning And Janitorial
http://statistics.data.gov.uk/search?search=E07000114,Thanet District Council,20/02/2018,448780,40.00,,Mr Darren Osborne,OSB008,Operational Services,Revenue,Cleaning & Domestic Supplies,Cleaning And Janitorial
http://statistics.data.gov.uk/search?search=E07000114,Thanet District Council,20/02/2018,448329,750.00,,Mr Paul Tapsell,TAP002,Community Services,Revenue,Services,Legal Services
http://statistics.data.gov.uk/search?search=E07000114,Thanet District Council,20/02/2018,448639,1020.00,,Mr Philip Woolfe,WOO030,Operational Services,Revenue,Services,Legal Services
http://statistics.data.gov.uk/search?search=E07000114,Thanet District Council,20/02/2018,447791,1189.00,,Nagels Uk Ltd,NAG001,Operational Services,Revenue,"Print, Stat And Gen Off Exps",Facilities And Mangement Serv
http://statistics.data.gov.uk/search?search=E07000114,Thanet District Council,20/02/2018,448806,7196.00,,Northwood Builders,NOR002,Corporate Resources and S151,Balance Sheet,Capital Exp-Non Council Assets,Grants
http://statistics.data.gov.uk/search?search=E07000114,Thanet District Council,20/02/2018,448369,292.96,,Npower Limited,NPO001,Corporate Governance,Revenue,Energy Costs,Utilities
http://statistics.data.gov.uk/search?search=E07000114,Thanet District Council,20/02/2018,447854,720.00,,Oak Housing Limited,OAK008,Community Services,Revenue,Services,Housing Management
http://statistics.data.gov.uk/search?search=E07000114,Thanet District Council,20/02/2018,447976,1813.37,,P & R Installation Company Limited,PRI035,Corporate Resources and S151,Balance Sheet,Repairs And Mtce Holding A/C,Building Construction Material
http://statistics.data.gov.uk/search?search=E07000114,Thanet District Council,20/02/2018,447977,388.10,,P & R Installation Company Limited,PRI035,Corporate Resources and S151,Balance Sheet,Repairs And Mtce Holding A/C,Building Construction Material
http://statistics.data.gov.uk/search?search=E07000114,Thanet District Council,20/02/2018,447978,2618.75,,P & R Installation Company Limited,PRI035,Corporate Resources and S151,Balance Sheet,Repairs And Mtce Holding A/C,Building Construction Material
http://statistics.data.gov.uk/search?search=E07000114,Thanet District Council,20/02/2018,447980,388.10,,P & R Installation Company Limited,PRI035,Corporate Resources and S151,Balance Sheet,Repairs And Mtce Holding A/C,Building Construction Material
http://statistics.data.gov.uk/search?search=E07000114,Thanet District Council,20/02/2018,447981,24377.50,,P & R Installation Company Limited,PRI035,Corporate Resources and S151,Balance Sheet,Repairs And Mtce Holding A/C,Building Construction Material
http://statistics.data.gov.uk/search?search=E07000114,Thanet District Council,20/02/2018,447982,3852.84,,P & R Installation Company Limited,PRI035,Corporate Resources and S151,Balance Sheet,Repairs And Mtce Holding A/C,Building Construction Material
http://statistics.data.gov.uk/search?search=E07000114,Thanet District Council,20/02/2018,447944,137829.00,,Paramount Ind Property Services Llp,PAR074,Community Services,Revenue,Services,Housing Management
http://statistics.data.gov.uk/search?search=E07000114,Thanet District Council,20/02/2018,448198,332.11,,Platform Service And Repair Ltd,PLA031,Operational Services,Revenue,"Equip, Furniture And Materials",Environmental Services
http://statistics.data.gov.uk/search?search=E07000114,Thanet District Council,20/02/2018,447997,3199.23,,Potter Raper Partnership,POT006,Corporate Resources and S151,Balance Sheet,Other Land And Buildings-Hra,Consultancy
http://statistics.data.gov.uk/search?search=E07000114,Thanet District Council,20/02/2018,448528,300.00,,Premier Signs,PRE027,Community Services,Revenue,"Print, Stat And Gen Off Exps",Building Construction Material
http://statistics.data.gov.uk/search?search=E07000114,Thanet District Council,20/02/2018,448812,300.00,,Prospects Assured Uk Ltd,PRO032,Community Services,Revenue,Grants & Subscriptions,Rent Deposits
http://statistics.data.gov.uk/search?search=E07000114,Thanet District Council,20/02/2018,448352,721.50,,R S S (Wessex) Limited,RSS002,Operational Services,Revenue,Agency Staff,Human Resources
http://statistics.data.gov.uk/search?search=E07000114,Thanet District Council,20/02/2018,448664,721.50,,R S S (Wessex) Limited,RSS002,Operational Services,Revenue,Agency Staff,Human Resources
http://statistics.data.gov.uk/search?search=E07000114,Thanet District Council,20/02/2018,448795,1090.00,,Regency Properties,REG004,Community Services,Revenue,Grants & Subscriptions,Rent Deposits
http://statistics.data.gov.uk/search?search=E07000114,Thanet District Council,20/02/2018,448796,750.00,,Regency Properties,REG004,Community Services,Revenue,Grants & Subscriptions,Rent Deposits
http://statistics.data.gov.uk/search?search=E07000114,Thanet District Council,20/02/2018,448797,750.00,,Regency Properties,REG004,Community Services,Revenue,Grants & Subscriptions,Rent Deposits
http://statistics.data.gov.uk/search?search=E07000114,Thanet District Council,20/02/2018,448798,1375.00,,Regency Properties,REG004,Community Services,Revenue,Grants & Subscriptions,Rent Deposits
http://statistics.data.gov.uk/search?search=E07000114,Thanet District Council,20/02/2018,448169,270.00,,Rexel Uk Limited,REX003,Operational Services,Revenue,"Repairs,  Alter & Mtce - Build",Building Construction Material
http://statistics.data.gov.uk/search?search=E07000114,Thanet District Council,20/02/2018,447420,453.11,,Scottish Water Business Stream Ltd,SCO019,Corporate Governance,Revenue,Water Services,Utilities
http://statistics.data.gov.uk/search?search=E07000114,Thanet District Council,20/02/2018,448322,898.05,,Scottish Water Business Stream Ltd,SCO019,Operational Services,Revenue,Water Services,Utilities
http://statistics.data.gov.uk/search?search=E07000114,Thanet District Council,20/02/2018,448695,3819.58,,Scottish Water Business Stream Ltd,SCO019,Operational Services,Revenue,Water Services,Utilities
http://statistics.data.gov.uk/search?search=E07000114,Thanet District Council,20/02/2018,448721,1028.22,,Scottish Water Business Stream Ltd,SCO019,Operational Services,Revenue,Water Services,Utilities
http://statistics.data.gov.uk/search?search=E07000114,Thanet District Council,20/02/2018,448722,1256.49,,Scottish Water Business Stream Ltd,SCO019,Operational Services,Revenue,Water Services,Utilities
http://statistics.data.gov.uk/search?search=E07000114,Thanet District Council,20/02/2018,448730,276.28,,Scottish Water Business Stream Ltd,SCO019,Operational Services,Revenue,Water Services,Utilities
http://statistics.data.gov.uk/search?search=E07000114,Thanet District Council,20/02/2018,448544,3098.48,,Securitas Security Services (Uk) Ltd,SEC019,Corporate Governance,Revenue,Services,Facilities And Mangement Serv
http://statistics.data.gov.uk/search?search=E07000114,Thanet District Council,20/02/2018,448281,1970.50,,Sellick Partnership Ltd,SEL011,Corporate Governance,Revenue,Services,Human Resources
http://statistics.data.gov.uk/search?search=E07000114,Thanet District Council,20/02/2018,448539,940.70,,Sellick Partnership Ltd,SEL011,Corporate Governance,Revenue,Services,Human Resources
http://statistics.data.gov.uk/search?search=E07000114,Thanet District Council,20/02/2018,448615,451.50,,Sellick Partnership Ltd,SEL011,Corporate Governance,Revenue,Services,Human Resources
http://statistics.data.gov.uk/search?search=E07000114,Thanet District Council,20/02/2018,448622,1917.00,,Sellick Partnership Ltd,SEL011,Corporate Governance,Revenue,Services,Human Resources
http://statistics.data.gov.uk/search?search=E07000114,Thanet District Council,20/02/2018,448805,6925.00,,South East Building Company Limited,SEB001,Corporate Resources and S151,Balance Sheet,Capital Exp-Non Council Assets,Grants
http://statistics.data.gov.uk/search?search=E07000114,Thanet District Council,20/02/2018,448808,15000.00,,South East Building Company Limited,SEB001,Corporate Resources and S151,Balance Sheet,Capital Exp-Non Council Assets,Grants
http://statistics.data.gov.uk/search?search=E07000114,Thanet District Council,20/02/2018,448300,256.92,,Southern Electric,SEL007,Operational Services,Revenue,Energy Costs,Utilities
http://statistics.data.gov.uk/search?search=E07000114,Thanet District Council,20/02/2018,448302,314.56,,Southern Electric,SEL007,Operational Services,Revenue,Energy Costs,Utilities
http://statistics.data.gov.uk/search?search=E07000114,Thanet District Council,20/02/2018,448308,216.93,,Southern Electric,SEL007,Operational Services,Revenue,Energy Costs,Utilities
http://statistics.data.gov.uk/search?search=E07000114,Thanet District Council,20/02/2018,448326,5.34,,Southern Electric,SEL007,Community Services,Revenue,Energy Costs,Utilities
http://statistics.data.gov.uk/search?search=E07000114,Thanet District Council,20/02/2018,448326,571.30,,Southern Electric,SEL007,Operational Services,Revenue,Energy Costs,Utilities
http://statistics.data.gov.uk/search?search=E07000114,Thanet District Council,20/02/2018,448705,249.51,,Southern Electric,SEL007,Community Services,Revenue,Energy Costs,Utilities
http://statistics.data.gov.uk/search?search=E07000114,Thanet District Council,20/02/2018,448716,298.77,,Southern Electric,SEL007,Operational Services,Revenue,Energy Costs,Utilities
http://statistics.data.gov.uk/search?search=E07000114,Thanet District Council,20/02/2018,448290,261.44,,Southern Water,SWA001,Operational Services,Revenue,Water Services,Utilities
http://statistics.data.gov.uk/search?search=E07000114,Thanet District Council,20/02/2018,447988,34206.07,,Standage & Co Limited,STA058,Corporate Resources and S151,Balance Sheet,Council Dwellings,Construction-Repair And Maint
http://statistics.data.gov.uk/search?search=E07000114,Thanet District Council,20/02/2018,447990,5975.80,,Standage & Co Limited,STA058,Corporate Resources and S151,Balance Sheet,Council Dwellings,Construction-Repair And Maint
http://statistics.data.gov.uk/search?search=E07000114,Thanet District Council,20/02/2018,448608,499.00,,Streetgames Uk Limited,STR030,Community Services,Revenue,Expenses,Arts And Leisure Services
http://statistics.data.gov.uk/search?search=E07000114,Thanet District Council,20/02/2018,445604,1300.00,,Thanet Nursery Project Limited,TNU001,Corporate Governance,Revenue,Rents,Facilities And Mangement Serv
http://statistics.data.gov.uk/search?search=E07000114,Thanet District Council,20/02/2018,448826,-650.00,,Thanet Nursery Project Limited,TNU001,Corporate Governance,Revenue,Rents,Facilities And Mangement Serv
http://statistics.data.gov.uk/search?search=E07000114,Thanet District Council,20/02/2018,448827,650.00,,Thanet Nursery Project Limited,TNU001,Corporate Governance,Revenue,Rents,Facilities And Mangement Serv
http://statistics.data.gov.uk/search?search=E07000114,Thanet District Council,20/02/2018,447577,3517.89,,The Glenwood Hotel,GLE007,Community Services,Revenue,Services,Housing Management
http://statistics.data.gov.uk/search?search=E07000114,Thanet District Council,20/02/2018,447587,2842.47,,The Glenwood Hotel,GLE007,Community Services,Revenue,Services,Housing Management
http://statistics.data.gov.uk/search?search=E07000114,Thanet District Council,20/02/2018,447588,1703.32,,The Glenwood Hotel,GLE007,Community Services,Revenue,Services,Housing Management
http://statistics.data.gov.uk/search?search=E07000114,Thanet District Council,20/02/2018,448167,2604.56,,The Glenwood Hotel,GLE007,Community Services,Revenue,Services,Housing Management
http://statistics.data.gov.uk/search?search=E07000114,Thanet District Council,20/02/2018,448670,750.00,,The Ramsgate Society,RAM003,Community Services,Revenue,"Print, Stat And Gen Off Exps",Grants
http://statistics.data.gov.uk/search?search=E07000114,Thanet District Council,20/02/2018,448170,11559.97,,Town & Country Cleaners Ltd,TOW002,Corporate Resources and S151,Balance Sheet,Repairs And Mtce Holding A/C,Cleaning And Janitorial
http://statistics.data.gov.uk/search?search=E07000114,Thanet District Council,20/02/2018,448186,11828.00,,Townsends Engineering Ltd,TOW016,Operational Services,Revenue,"Repairs,  Alter & Mtce - Build",Construction-Repair And Maint
http://statistics.data.gov.uk/search?search=E07000114,Thanet District Council,20/02/2018,448620,719.50,,Trinity Resource Centre Limited,TRI018,Community Services,Revenue,Rents,Facilities And Mangement Serv
http://statistics.data.gov.uk/search?search=E07000114,Thanet District Council,20/02/2018,448803,3000.00,,Turner Contemporary,TUR016,Community Services,Revenue,Grants & Subscriptions,Grants
http://statistics.data.gov.uk/search?search=E07000114,Thanet District Council,20/02/2018,448551,303.60,,Viridor Waste Management Ltd,VIR003,Corporate Governance,Revenue,Private Contractors,Environmental Services
http://statistics.data.gov.uk/search?search=E07000114,Thanet District Council,20/02/2018,448676,640.00,,W Brazil & Bros,BRA001,Operational Services,Revenue,Grounds Mtce Costs,Environmental Services
http://statistics.data.gov.uk/search?search=E07000114,Thanet District Council,21/02/2018,447753,5950.00,,Carinya Landscapes,CAR050,Operational Services,Revenue,Services,Construction-Repair And Maint
http://statistics.data.gov.uk/search?search=E07000114,Thanet District Council,21/02/2018,448946,-5950.00,,Carinya Landscapes,CAR050,Operational Services,Revenue,Services,Construction-Repair And Maint
http://statistics.data.gov.uk/search?search=E07000114,Thanet District Council,21/02/2018,448947,5950.00,,Carinya Landscapes,CAR050,Operational Services,Revenue,Services,Construction-Repair And Maint
http://statistics.data.gov.uk/search?search=E07000114,Thanet District Council,26/02/2018,PC10439,9.99,,123 Reg,N/A,Operational Services,Revenue,Communications & Computing,ICT,,,9.99,2,11.99,RAMSGATEMARINA.CO.UK,43133,43157,Sharon.Kelley
http://statistics.data.gov.uk/search?search=E07000114,Thanet District Council,26/02/2018,PC10452,9.99,,123 Reg,N/A,East Kent Shared Services,Revenue,Communications & Computing,ICT,W916,,9.99,2,11.99,DOMAIN NAME RENEWAL,43145,43157,Cheryl.Hulks
http://statistics.data.gov.uk/search?search=E07000114,Thanet District Council,26/02/2018,PC10387,398.50,,4Imprint.Co.Uk,N/A,Corporate Governance,Revenue,"Print, Stat And Gen Off Exps",Stationery,,,398.5,79.7,478.2,STATIONERY SUPPLIES,43123,43157,Amanda.Buckingham
http://statistics.data.gov.uk/search?search=E07000114,Thanet District Council,26/02/2018,PC10400,1.48,,Aldi,N/A,Operational Services,Revenue,Catering,Catering,,E0042,1.48,0,1.48,MILK,43124,43157,Tony.Child
http://statistics.data.gov.uk/search?search=E07000114,Thanet District Council,26/02/2018,PC10414,35.99,,Amazon UK Marketplace,N/A,Community Services,Revenue,"Equip, Furniture And Materials",Stationery,,,35.99,0,35.99,4 X TORCHES,,43157,Alison.Brock
http://statistics.data.gov.uk/search?search=E07000114,Thanet District Council,26/02/2018,PC10450,127.09,21.19,Amazon UK Marketplace,N/A,East Kent Shared Services,Revenue,"Equip, Furniture And Materials",Stationery,,,127.09,0,127.09,LEAFLET DISPLAY STAND,43138,43157,Cheryl.Hulks
http://statistics.data.gov.uk/search?search=E07000114,Thanet District Council,26/02/2018,PC10361,13.29,,Amazon UK Retail,N/A,East Kent Shared Services,Revenue,"Equip, Furniture And Materials",Stationery,,,13.29,0,13.29,RETURN,43115,43157,Cheryl.Hulks
http://statistics.data.gov.uk/search?search=E07000114,Thanet District Council,26/02/2018,PC10449,13.29,2.22,Amazon UK Retail,N/A,East Kent Shared Services,Revenue,"Equip, Furniture And Materials",Stationery,,,13.29,0,13.29,ACS ERROR - TO BE REFUNDED,43130,43157,Cheryl.Hulks
http://statistics.data.gov.uk/search?search=E07000114,Thanet District Council,26/02/2018,PC10451,-13.29,,Amazon.co.uk,N/A,East Kent Shared Services,Revenue,"Equip, Furniture And Materials",Stationery,,,-13.29,0,-13.29,REFUND FOR ACS ERROR,43146,43157,Cheryl.Hulks
http://statistics.data.gov.uk/search?search=E07000114,Thanet District Council,26/02/2018,PC10389,5.10,,Asda,N/A,Corporate Governance,Revenue,"Equip, Furniture And Materials",Catering,,,5.1,1.03,6.13,CLEANING SUPPLIES,43123,43157,Amanda.Buckingham
http://statistics.data.gov.uk/search?search=E07000114,Thanet District Council,26/02/2018,PC10426,6.14,1.03,Asda Stores,N/A,Operational Services,Revenue,Catering,Catering,,E0042,6.14,0,6.14,REFRESHMENTS-VOLUNTEERS,43138,43157,Tony.Child
http://statistics.data.gov.uk/search?search=E07000114,Thanet District Council,26/02/2018,PC10453,14.71,,BC Basecamp,N/A,Community Services,Revenue,Communications & Computing,Financial Services,,,14.71,0,14.71,FEB 17 2018 - MARCH 17 2018,43150,43157,Paula.Harbidge
http://statistics.data.gov.uk/search?search=E07000114,Thanet District Council,26/02/2018,PC10423,60.32,,Booker Limited Broadstairs,N/A,Corporate Governance,Revenue,Catering,Catering,,,60.32,0,60.32,REFRESHMENTS,,43157,Amanda.Buckingham
http://statistics.data.gov.uk/search?search=E07000114,Thanet District Council,26/02/2018,PC10412,17.98,,Booker Ltd,N/A,Chief Executive,Revenue,Catering,Catering,,,17.98,0,17.98,MILK FOR CE SUITE,43131,43157,Ian.Dowd
http://statistics.data.gov.uk/search?search=E07000114,Thanet District Council,26/02/2018,PC10436,20.96,,Booker Ltd,N/A,Corporate Governance,Revenue,Catering,Catering,,,20.96,0,20.96,MILK PORTINS AND COFFEE,43144,43157,Ian.Dowd
http://statistics.data.gov.uk/search?search=E07000114,Thanet District Council,26/02/2018,PC10437,9.98,,Booker Ltd,N/A,Corporate Governance,Revenue,Catering,Catering,,,9.98,2,11.98,DISHWASHER TABLETS,43144,43157,Ian.Dowd
http://statistics.data.gov.uk/search?search=E07000114,Thanet District Council,26/02/2018,PC10433,4.17,,Bunnings Warehouse,N/A,Corporate Governance,Revenue,Fixtures & Fittings,Building Construction Material,,,4.17,0.83,5,STATIC CLING FILM FOR WINDOWS,43144,43157,Ian.Dowd
http://statistics.data.gov.uk/search?search=E07000114,Thanet District Council,26/02/2018,PC10429,136.00,,CIEH,N/A,Community Services,Revenue,Expenses,Human Resources,,,136,0,136,TICKET FOR HOUSING CONFERENCE,43143,43157,richard.hopkins
http://statistics.data.gov.uk/search?search=E07000114,Thanet District Council,26/02/2018,PC10424,7.48,,Currys,N/A,Corporate Governance,Revenue,"Equip, Furniture And Materials",Facilities And Management Serv,,,7.48,1.49,8.97,EQUIPMENT PURCHASE,43137,43157,Amanda.Buckingham
http://statistics.data.gov.uk/search?search=E07000114,Thanet District Council,26/02/2018,PC10401,167.50,,DVLA Vehicle Tax,N/A,Operational Services,Revenue,Direct Transport Costs,Various Cats-Public Sector,,,167.5,0,167.5,TAX FOR PSX,43126,43157,Peter.Thomas
http://statistics.data.gov.uk/search?search=E07000114,Thanet District Council,26/02/2018,PC10402,202.50,,DVLA Vehicle Tax,N/A,Operational Services,Revenue,Direct Transport Costs,Various Cats-Public Sector,,,202.5,0,202.5,TAX FOR SZT,43126,43157,Peter.Thomas
http://statistics.data.gov.uk/search?search=E07000114,Thanet District Council,26/02/2018,PC10403,167.50,,DVLA Vehicle Tax,N/A,Operational Services,Revenue,Direct Transport Costs,Various Cats-Public Sector,,,167.5,0,167.5,TAX FOR GKF,43126,43157,Peter.Thomas
http://statistics.data.gov.uk/search?search=E07000114,Thanet District Council,26/02/2018,PC10404,167.50,,DVLA Vehicle Tax,N/A,Operational Services,Revenue,Direct Transport Costs,Various Cats-Public Sector,,,167.5,0,167.5,TAX FOR GKE,43126,43157,Peter.Thomas
http://statistics.data.gov.uk/search?search=E07000114,Thanet District Council,26/02/2018,PC10405,167.50,,DVLA Vehicle Tax,N/A,Operational Services,Revenue,Direct Transport Costs,Various Cats-Public Sector,,,167.5,0,167.5,TAX FOR GKD,43126,43157,Peter.Thomas
http://statistics.data.gov.uk/search?search=E07000114,Thanet District Council,26/02/2018,PC10406,167.50,,DVLA Vehicle Tax,N/A,Operational Services,Revenue,Direct Transport Costs,Various Cats-Public Sector,,,167.5,0,167.5,TAX FOR GKC,43126,43157,Peter.Thomas
http://statistics.data.gov.uk/search?search=E07000114,Thanet District Council,26/02/2018,PC10422,30.00,,EB - Cornerstone Barristers,N/A,Corporate Governance,Revenue,Expenses,Human Resources,,,30,6,36,GDPR COURSE ON SOCIAL HOUSING,43137,43157,Christina.Zacharia
http://statistics.data.gov.uk/search?search=E07000114,Thanet District Council,26/02/2018,PC10399,120.00,,ETI Ltd (Paypal),N/A,Community Services,Revenue,"Equip, Furniture And Materials",Environmental Services,,,120,24,144,FOOD THERMOMETERS,,43157,Alison.Brock
http://statistics.data.gov.uk/search?search=E07000114,Thanet District Council,26/02/2018,PC10434,37.00,,F J Rogers,N/A,Corporate Governance,Revenue,"Equip, Furniture And Materials",Facilities And Management Serv,,,37,7.4,44.4,REPAIR 2 VACUUM CLEANER LEADS,43144,43157,Ian.Dowd
http://statistics.data.gov.uk/search?search=E07000114,Thanet District Council,26/02/2018,PC10444,92.73,,Facebook Ireland Ltd,N/A,Corporate Resources and S151,Revenue,Miscellaneous Expenses,Facilities And Management Serv,R002,,92.73,0,92.73,THANET COMMUNITY LOTTO ADDS,43131,43157,Sharon.Kelley
http://statistics.data.gov.uk/search?search=E07000114,Thanet District Council,26/02/2018,PC10447,3.37,,Facebook Ireland Ltd,N/A,Community Services,Revenue,Miscellaneous Expenses,Facilities And Management Serv,,E0460,3.37,0,3.37,TCSP 2018 CONSULTATION,43131,43157,Sharon.Kelley
http://statistics.data.gov.uk/search?search=E07000114,Thanet District Council,26/02/2018,PC10397,121.00,,HM Court-Services,N/A,Community Services,Revenue,Services,Various Cats-Public Sector,,,121,0,121,WARRANT FEE (001956),43125,43157,Joanne.Olive
http://statistics.data.gov.uk/search?search=E07000114,Thanet District Council,26/02/2018,PC10445,121.00,,HM Court-Services,N/A,Community Services,Revenue,Services,Various Cats-Public Sector,,,121,0,121,WARRANT FEE (001735),43145,43157,Joanne.Olive
http://statistics.data.gov.uk/search?search=E07000114,Thanet District Council,26/02/2018,PC10381,2094.00,,HMCTS-Kent099,N/A,East Kent Shared Services,Revenue,Services,Various Cats-Public Sector,,,2094,0,2094,CCC CTX SUMMONSES X698,43122,43157,Katie.Payne
http://statistics.data.gov.uk/search?search=E07000114,Thanet District Council,26/02/2018,PC10382,1974.00,,HMCTS-Kent099,N/A,East Kent Shared Services,Revenue,Services,Various Cats-Public Sector,,,1974,0,1974,DDC CTX SUMMONSES X658,43122,43157,Katie.Payne
http://statistics.data.gov.uk/search?search=E07000114,Thanet District Council,26/02/2018,PC10383,4497.00,,HMCTS-Kent099,N/A,East Kent Shared Services,Revenue,Services,Various Cats-Public Sector,,,4497,0,4497,TDC CTX SUMMONSES X1499,43122,43157,Katie.Payne
http://statistics.data.gov.uk/search?search=E07000114,Thanet District Council,26/02/2018,PC10384,141.00,,HMCTS-Kent099,N/A,East Kent Shared Services,Revenue,Services,Various Cats-Public Sector,,,141,0,141,CCC NDR SUMMONSES X47,43122,43157,Katie.Payne
http://statistics.data.gov.uk/search?search=E07000114,Thanet District Council,26/02/2018,PC10385,96.00,,HMCTS-Kent099,N/A,East Kent Shared Services,Revenue,Services,Various Cats-Public Sector,,,96,0,96,DDC NDR SUMMONSES X32,43122,43157,Katie.Payne
http://statistics.data.gov.uk/search?search=E07000114,Thanet District Council,26/02/2018,PC10386,99.00,,HMCTS-Kent099,N/A,East Kent Shared Services,Revenue,Services,Various Cats-Public Sector,,,99,0,99,TDC NDR SUMMONSES X33,43122,43157,Katie.Payne
http://statistics.data.gov.uk/search?search=E07000114,Thanet District Council,26/02/2018,PC10454,9.95,,Lidl,N/A,Operational Services,Revenue,Catering,Catering,G073,,9.95,1.99,11.94,6 CASES (12) BOTTLED WATER,43144,43157,Robert.Brown
http://statistics.data.gov.uk/search?search=E07000114,Thanet District Council,26/02/2018,PC10391,81.90,,London & Southeastern,N/A,Operational Services,Revenue,Public Transport,Human Resources,Z946,,81.9,0,81.9,TRAIN TICKET - 1/2/18,43123,43157,Peter.Thomas
http://statistics.data.gov.uk/search?search=E07000114,Thanet District Council,26/02/2018,PC10392,65.10,,London & Southeastern,N/A,Operational Services,Revenue,Public Transport,Human Resources,Z946,,65.1,0,65.1,TRAIN TICKET - 1/2/18,43123,43157,Peter.Thomas
http://statistics.data.gov.uk/search?search=E07000114,Thanet District Council,26/02/2018,PC10407,47.00,,NFPS Ltd,N/A,Corporate Resources and S151,Revenue,Training,Human Resources,V902,,47,9.4,56.4,H&S TRAINING FILM,,43157,Peter.Thomas
http://statistics.data.gov.uk/search?search=E07000114,Thanet District Council,26/02/2018,PC10419,60.00,,Parkingeye,N/A,Operational Services,Revenue,Direct Transport Costs,Street and Traffic Management,,,60,0,60,PARKING TICKET STREET CLEANING,43133,43157,Peter.Thomas
http://statistics.data.gov.uk/search?search=E07000114,Thanet District Council,26/02/2018,PC10363,325.00,,Possessionclaim.Gov,N/A,Community Services,Revenue,Services,Various Cats-Public Sector,,,325,0,325,ISSUE FEE (002229),43119,43157,Joanne.Olive
http://statistics.data.gov.uk/search?search=E07000114,Thanet District Council,26/02/2018,PC10388,121.00,,Possessionclaim.Gov,N/A,Community Services,Revenue,Services,Various Cats-Public Sector,,,121,0,121,WARRANT FEE (002137),43123,43157,Joanne.Olive
http://statistics.data.gov.uk/search?search=E07000114,Thanet District Council,26/02/2018,PC10390,325.00,,Possessionclaim.Gov,N/A,Community Services,Revenue,Services,Various Cats-Public Sector,,,325,0,325,ISSUE FEE (002190),43123,43157,Joanne.Olive
http://statistics.data.gov.uk/search?search=E07000114,Thanet District Council,26/02/2018,PC10395,325.00,,Possessionclaim.Gov,N/A,Community Services,Revenue,Services,Various Cats-Public Sector,,,325,0,325,ISSUE FEE (002217),43119,43157,Joanne.Olive
http://statistics.data.gov.uk/search?search=E07000114,Thanet District Council,26/02/2018,PC10396,325.00,,Possessionclaim.Gov,N/A,Community Services,Revenue,Services,Various Cats-Public Sector,,,325,0,325,ISSUE FEE (02244),43123,43157,Joanne.Olive
http://statistics.data.gov.uk/search?search=E07000114,Thanet District Council,26/02/2018,PC10398,325.00,,Possessionclaim.Gov,N/A,Community Services,Revenue,Services,Various Cats-Public Sector,,,325,0,325,ISSUE FEE (001664),43125,43157,Joanne.Olive
http://statistics.data.gov.uk/search?search=E07000114,Thanet District Council,26/02/2018,PC10409,325.00,,Possessionclaim.Gov,N/A,Community Services,Revenue,Services,Various Cats-Public Sector,,,325,0,325,ISSUE FEE (002279),43130,43157,Joanne.Olive
http://statistics.data.gov.uk/search?search=E07000114,Thanet District Council,26/02/2018,PC10410,325.00,,Possessionclaim.Gov,N/A,Community Services,Revenue,Services,Various Cats-Public Sector,,,325,0,325,ISSUE FEE (002303),43131,43157,Joanne.Olive
http://statistics.data.gov.uk/search?search=E07000114,Thanet District Council,26/02/2018,PC10446,325.00,,Possessionclaim.Gov,N/A,Community Services,Revenue,Services,Various Cats-Public Sector,,,325,0,325,ISSUE FEE (001286),43146,43157,Joanne.Olive
http://statistics.data.gov.uk/search?search=E07000114,Thanet District Council,26/02/2018,PC10455,325.00,,Possessionclaim.Gov,N/A,Community Services,Revenue,Services,Various Cats-Public Sector,,,325,0,325,ISSUE FEE (002311),43146,43157,Joanne.Olive
http://statistics.data.gov.uk/search?search=E07000114,Thanet District Council,26/02/2018,PC10432,298.80,,Quarterman Windscreens UK Ltd,N/A,Operational Services,Revenue,Direct Transport Costs,Vehicle Management,,,298.8,59.76,358.56,SUPPLY & FIT WINDSCREEN TO UVW,43144,43157,Peter.Thomas
http://statistics.data.gov.uk/search?search=E07000114,Thanet District Council,26/02/2018,PC10467,308.40,51.40,Reactec.com,N/A,Operational Services,Revenue,"Equip, Furniture And Materials",Health & Safety,,,308.4,0,308.4,HAVS EQUIPMENT,,43157,Sharon.Carter
http://statistics.data.gov.uk/search?search=E07000114,Thanet District Council,26/02/2018,PC10364,63.70,,Southeastern Web,N/A,Corporate Resources and S151,Revenue,Public Transport,Human Resources,Z946,,63.7,0,63.7,RAIL TICKET - 26TH JAN 2018,43140,43157,Gemma.Paul
http://statistics.data.gov.uk/search?search=E07000114,Thanet District Council,26/02/2018,PC10413,26.30,,Southeastern Web,N/A,Community Services,Revenue,Public Transport,Human Resources,Z946,,26.3,0,26.3,TRAIN TICKET 22/2/18,43131,43157,Alison.Brock
http://statistics.data.gov.uk/search?search=E07000114,Thanet District Council,26/02/2018,PC10417,210.90,,Southeastern Web,N/A,Corporate Resources and S151,Revenue,Public Transport,Human Resources,Z946,,210.9,0,210.9,RAIL TICKETS X3 - 6TH FEB 2018,43161,43157,Gemma.Paul
http://statistics.data.gov.uk/search?search=E07000114,Thanet District Council,26/02/2018,PC10418,140.60,,Southeastern Web,N/A,Corporate Resources and S151,Revenue,Public Transport,Human Resources,Z946,,140.6,0,140.6,RAIL TICKETS X2 - 8TH FEB 2018,43161,43157,Gemma.Paul
http://statistics.data.gov.uk/search?search=E07000114,Thanet District Council,26/02/2018,PC10421,23.20,,Southeastern Web,N/A,Corporate Governance,Revenue,Expenses,Human Resources,Z946,,23.2,0,23.2,RAIL TICKETS - 6/2/18,43137,43157,Christina.Zacharia
http://statistics.data.gov.uk/search?search=E07000114,Thanet District Council,26/02/2018,PC10425,137.60,,Southeastern Web,N/A,Corporate Governance,Revenue,Public Transport,Human Resources,Z946,,137.6,0,137.6,RAIL TICKETS - 9/2/18,43137,43157,Christina.Zacharia
http://statistics.data.gov.uk/search?search=E07000114,Thanet District Council,26/02/2018,PC10427,142.60,,Southeastern Web,N/A,Corporate Resources and S151,Revenue,Public Transport,Human Resources,Z946,,142.6,0,142.6,RAIL TICKET X2 - 19TH FEB 2018,43140,43157,Gemma.Paul
http://statistics.data.gov.uk/search?search=E07000114,Thanet District Council,26/02/2018,PC10428,20.30,,Southeastern Web,N/A,Community Services,Revenue,Public Transport,Human Resources,Z946,,20.3,0,20.3,TRAIN TICKET 19 FEB,43139,43157,Alison.Brock
http://statistics.data.gov.uk/search?search=E07000114,Thanet District Council,26/02/2018,PC10431,45.20,,Southeastern Web,N/A,Corporate Resources and S151,Revenue,Public Transport,Human Resources,Z946,,45.2,0,45.2,RAIL TICKETS - 11TH MARCH 2018,,43157,Gemma.Paul
http://statistics.data.gov.uk/search?search=E07000114,Thanet District Council,26/02/2018,PC10448,95.00,,The Action Manager Ltd (Paypal),N/A,Operational Services,Revenue,Services,Financial Services,,,95,0,95,MONTHLY SUBS ACTION MANAGER,43147,43157,Peter.Thomas
http://statistics.data.gov.uk/search?search=E07000114,Thanet District Council,26/02/2018,PC10378,84.00,,Thomson Reuters,N/A,Community Services,Revenue,"Print, Stat And Gen Off Exps",Financial Services,,,84,16.8,100.8,JCT ONLINE CONTRACT/PRINT CRED,43122,43157,Christina.Zacharia
http://statistics.data.gov.uk/search?search=E07000114,Thanet District Council,26/02/2018,PC10435,28.00,,Thomson Reuters,N/A,Community Services,Revenue,"Print, Stat And Gen Off Exps",Financial Services,,,28,5.6,33.6,JCT ONLINE PRINT CREDITS,43144,43157,Christina.Zacharia
http://statistics.data.gov.uk/search?search=E07000114,Thanet District Council,26/02/2018,PC10420,165.30,,Trainline,N/A,Operational Services,Revenue,Public Transport,Human Resources,Z946,,165.3,0,165.3,TICKETS - 6/2/18,43137,43157,Christina.Zacharia
http://statistics.data.gov.uk/search?search=E07000114,Thanet District Council,26/02/2018,PC10415,52.00,8.67,Travelodge,N/A,Corporate Resources and S151,Revenue,Public Transport,Human Resources,,,52,0,52,ACCOMMODATION- 11TH MARCH 2018,,43157,Gemma.Paul
http://statistics.data.gov.uk/search?search=E07000114,Thanet District Council,26/02/2018,PC10416,5.25,,Travelodge,N/A,Corporate Resources and S151,Revenue,Public Transport,Human Resources,,,5.25,0,5.25,ACCOM BFAST- 11TH MARCH 2018,,43157,Gemma.Paul
http://statistics.data.gov.uk/search?search=E07000114,Thanet District Council,26/02/2018,PC10408,6.63,,Twitter Online Ads,N/A,Corporate Resources and S151,Revenue,Miscellaneous Expenses,ICT,R002,,6.63,0,6.63,THANET COMMUNITY LOTTO ADS,43123,43157,Sharon.Kelley
http://statistics.data.gov.uk/search?search=E07000114,Thanet District Council,26/02/2018,PC10440,6.16,,Twitter Online Ads,N/A,Corporate Resources and S151,Revenue,Miscellaneous Expenses,ICT,R002,,6.16,0,6.16,THANET COMMUNITY LOTTO ADS,43130,43157,Sharon.Kelley
http://statistics.data.gov.uk/search?search=E07000114,Thanet District Council,26/02/2018,PC10441,2.52,,Twitter Online Ads,N/A,Corporate Resources and S151,Revenue,Miscellaneous Expenses,ICT,R002,,2.52,0,2.52,THANET COMMUNITY LOTTO ADS,43133,43157,Sharon.Kelley
http://statistics.data.gov.uk/search?search=E07000114,Thanet District Council,26/02/2018,PC10442,4.95,,Twitter Online Ads,N/A,Corporate Resources and S151,Revenue,Miscellaneous Expenses,ICT,R002,,4.95,0,4.95,THANET COMMUNITY LOTTO ADS,43140,43157,Sharon.Kelley
http://statistics.data.gov.uk/search?search=E07000114,Thanet District Council,26/02/2018,PC10458,5.15,,Twitter Online Ads,N/A,Corporate Resources and S151,Revenue,Miscellaneous Expenses,ICT,R002,,5.15,0,5.15,THANET COMMUNITY LOTTO,43147,43157,Sharon.Kelley
http://statistics.data.gov.uk/search?search=E07000114,Thanet District Council,26/02/2018,PC10430,36.00,,Virgin Trains,N/A,Corporate Resources and S151,Revenue,Public Transport,Human Resources,Z946,,36,0,36,RAIL TICKETS - 11TH MARCH 2018,,43157,Gemma.Paul
http://statistics.data.gov.uk/search?search=E07000114,Thanet District Council,26/02/2018,PC10443,9.56,,Wordpress.com,N/A,Corporate Resources and S151,Revenue,Services,ICT,,,9.56,0,9.56,REDIRECT DOMAIN NAME,43145,43157,Sharon.Kelley
http://statistics.data.gov.uk/search?search=E07000114,Thanet District Council,27/02/2018,448602,750.00,,123hr Limited,123003,Corporate Resources and S151,Balance Sheet,Plant And Equipment,ICT
http://statistics.data.gov.uk/search?search=E07000114,Thanet District Council,27/02/2018,448990,14050.00,,Advanced Business Solutions,COA011,Corporate Resources and S151,Revenue,Communications & Computing,ICT
http://statistics.data.gov.uk/search?search=E07000114,Thanet District Council,27/02/2018,448689,541.06,,Aebi Schmidt Uk Limited,AEB002,Operational Services,Revenue,Direct Transport Costs,Vehicle Management
http://statistics.data.gov.uk/search?search=E07000114,Thanet District Council,27/02/2018,448681,2460.00,,All About Asbestos Limited,ALL044,Corporate Governance,Revenue,"Repairs,  Alter & Mtce - Build",Environmental Services
http://statistics.data.gov.uk/search?search=E07000114,Thanet District Council,27/02/2018,448682,2875.00,,All About Asbestos Limited,ALL044,Corporate Governance,Revenue,"Repairs,  Alter & Mtce - Build",Environmental Services
http://statistics.data.gov.uk/search?search=E07000114,Thanet District Council,27/02/2018,447781,437.40,,All Access Ltd,ALL031,Corporate Resources and S151,Balance Sheet,Rechargeable Works,Building Construction Material
http://statistics.data.gov.uk/search?search=E07000114,Thanet District Council,27/02/2018,444924,2751.87,,Arc4 Limited,ARC015,Community Services,Revenue,Services,Consultancy
http://statistics.data.gov.uk/search?search=E07000114,Thanet District Council,27/02/2018,449207,5000.00,,Berry Building Consultants Limited,BER004,Corporate Resources and S151,Balance Sheet,Capital Exp-Non Council Assets,Grants
http://statistics.data.gov.uk/search?search=E07000114,Thanet District Council,27/02/2018,448755,289.00,,Bison Print Limited,BIS006,East Kent Shared Services,Revenue,Communications & Computing,Facilities And Mangement Serv
http://statistics.data.gov.uk/search?search=E07000114,Thanet District Council,27/02/2018,449205,2000.00,,Boys & Maughan,BOY001,Corporate Governance,Revenue,Services,Various Categories
http://statistics.data.gov.uk/search?search=E07000114,Thanet District Council,27/02/2018,448726,780.00,,Bt Payment Services Ltd,BTE003,Operational Services,Revenue,Communications & Computing,ICT
http://statistics.data.gov.uk/search?search=E07000114,Thanet District Council,27/02/2018,447758,966.33,,Calibre Cleaning Ltd,CAL010,Corporate Governance,Revenue,Cleaning & Domestic Supplies,Cleaning And Janitorial
http://statistics.data.gov.uk/search?search=E07000114,Thanet District Council,27/02/2018,448360,2418.48,,Canon (Uk) Ltd,CAN021,Corporate Governance,Revenue,"Equip, Furniture And Materials",Facilities And Mangement Serv
http://statistics.data.gov.uk/search?search=E07000114,Thanet District Council,27/02/2018,448364,1262.41,,Canon (Uk) Ltd,CAN021,Corporate Governance,Revenue,"Equip, Furniture And Materials",Facilities And Mangement Serv
http://statistics.data.gov.uk/search?search=E07000114,Thanet District Council,27/02/2018,449216,1942.46,,Canon (Uk) Ltd,CAN021,Corporate Governance,Revenue,"Equip, Furniture And Materials",Facilities And Mangement Serv
http://statistics.data.gov.uk/search?search=E07000114,Thanet District Council,27/02/2018,447878,34503.54,,Certas Energy Uk Ltd,CER005,Operational Services,Revenue,Direct Transport Costs,Vehicle Management
http://statistics.data.gov.uk/search?search=E07000114,Thanet District Council,27/02/2018,448666,2509.00,,Certas Energy Uk Ltd,CER005,Operational Services,Revenue,"Equip, Furniture And Materials",Vehicle Management
http://statistics.data.gov.uk/search?search=E07000114,Thanet District Council,27/02/2018,448733,1024.80,,Cfh Docmail Ltd,CFH001,East Kent Shared Services,Revenue,"Print, Stat And Gen Off Exps",Facilities And Mangement Serv
http://statistics.data.gov.uk/search?search=E07000114,Thanet District Council,27/02/2018,448769,816.00,,Cfh Docmail Ltd,CFH001,East Kent Shared Services,Revenue,"Print, Stat And Gen Off Exps",Facilities And Mangement Serv
http://statistics.data.gov.uk/search?search=E07000114,Thanet District Council,27/02/2018,448776,1020.00,,Cfh Docmail Ltd,CFH001,East Kent Shared Services,Revenue,"Print, Stat And Gen Off Exps",Facilities And Mangement Serv
http://statistics.data.gov.uk/search?search=E07000114,Thanet District Council,27/02/2018,448779,1020.00,,Cfh Docmail Ltd,CFH001,East Kent Shared Services,Revenue,"Print, Stat And Gen Off Exps",Facilities And Mangement Serv
http://statistics.data.gov.uk/search?search=E07000114,Thanet District Council,27/02/2018,449203,800.00,,Ciaran Doyle,DOY005,Community Services,Revenue,Grants & Subscriptions,Rent Deposits
http://statistics.data.gov.uk/search?search=E07000114,Thanet District Council,27/02/2018,448643,1760.00,,Cipfa Business Ltd,CIP008,Corporate Resources and S151,Revenue,Grants & Subscriptions,Financial Services
http://statistics.data.gov.uk/search?search=E07000114,Thanet District Council,27/02/2018,448959,1219.92,,Civica Uk Ltd,CIV003,East Kent Shared Services,Revenue,Communications & Computing,ICT
http://statistics.data.gov.uk/search?search=E07000114,Thanet District Council,27/02/2018,448960,2052.65,,Civica Uk Ltd,CIV003,East Kent Shared Services,Revenue,Communications & Computing,ICT
http://statistics.data.gov.uk/search?search=E07000114,Thanet District Council,27/02/2018,448961,2136.45,,Civica Uk Ltd,CIV003,East Kent Shared Services,Revenue,Communications & Computing,ICT
http://statistics.data.gov.uk/search?search=E07000114,Thanet District Council,27/02/2018,448962,1281.87,,Civica Uk Ltd,CIV003,East Kent Shared Services,Revenue,Communications & Computing,ICT
http://statistics.data.gov.uk/search?search=E07000114,Thanet District Council,27/02/2018,448963,801.17,,Civica Uk Ltd,CIV003,East Kent Shared Services,Revenue,Communications & Computing,ICT
http://statistics.data.gov.uk/search?search=E07000114,Thanet District Council,27/02/2018,448964,108100.65,,Civica Uk Ltd,CIV003,East Kent Shared Services,Revenue,Communications & Computing,ICT
http://statistics.data.gov.uk/search?search=E07000114,Thanet District Council,27/02/2018,448966,1996.96,,Civica Uk Ltd,CIV003,East Kent Shared Services,Revenue,Communications & Computing,ICT
http://statistics.data.gov.uk/search?search=E07000114,Thanet District Council,27/02/2018,448968,936.00,,Civica Uk Ltd,CIV003,East Kent Shared Services,Revenue,Communications & Computing,ICT
http://statistics.data.gov.uk/search?search=E07000114,Thanet District Council,27/02/2018,448969,936.00,,Civica Uk Ltd,CIV003,East Kent Shared Services,Revenue,Communications & Computing,ICT
http://statistics.data.gov.uk/search?search=E07000114,Thanet District Council,27/02/2018,448970,1560.00,,Civica Uk Ltd,CIV003,East Kent Shared Services,Revenue,Communications & Computing,ICT
http://statistics.data.gov.uk/search?search=E07000114,Thanet District Council,27/02/2018,448971,1485.12,,Civica Uk Ltd,CIV003,East Kent Shared Services,Revenue,Communications & Computing,ICT
http://statistics.data.gov.uk/search?search=E07000114,Thanet District Council,27/02/2018,448973,1697.28,,Civica Uk Ltd,CIV003,East Kent Shared Services,Revenue,Communications & Computing,ICT
http://statistics.data.gov.uk/search?search=E07000114,Thanet District Council,27/02/2018,449146,7000.00,,Coastal Publications,COA018,Community Services,Revenue,Grants & Subscriptions,Arts And Leisure Services
http://statistics.data.gov.uk/search?search=E07000114,Thanet District Council,27/02/2018,448942,1272.00,,Cobalt Consulting (Uk) Limited,COB004,Corporate Governance,Revenue,Agency Staff,Human Resources
http://statistics.data.gov.uk/search?search=E07000114,Thanet District Council,27/02/2018,448943,424.00,,Cobalt Consulting (Uk) Limited,COB004,Corporate Governance,Revenue,Agency Staff,Human Resources
http://statistics.data.gov.uk/search?search=E07000114,Thanet District Council,27/02/2018,448788,225.00,,Countrystyle Recycling Limited,COU019,Operational Services,Revenue,Cont Hire & Operating Lease,Environmental Services
http://statistics.data.gov.uk/search?search=E07000114,Thanet District Council,27/02/2018,448299,31450.25,,Crown Estate,CRO022,Operational Services,Revenue,Rents,Maritime Services
http://statistics.data.gov.uk/search?search=E07000114,Thanet District Council,27/02/2018,448301,4877.50,,Crown Estate,CRO022,Operational Services,Revenue,Rents,Maritime Services
http://statistics.data.gov.uk/search?search=E07000114,Thanet District Council,27/02/2018,448303,25264.75,,Crown Estate,CRO022,Operational Services,Revenue,Rents,Maritime Services
http://statistics.data.gov.uk/search?search=E07000114,Thanet District Council,27/02/2018,448649,1539.00,,Csl Power Systems Ltd,CSL002,Operational Services,Revenue,"Repairs,  Alter & Mtce - Build",Building Construction Material
http://statistics.data.gov.uk/search?search=E07000114,Thanet District Council,27/02/2018,447904,705.00,,Dennis Eagle Ltd,DEN005,Corporate Resources and S151,Balance Sheet,Plant And Equipment,Vehicle Management
http://statistics.data.gov.uk/search?search=E07000114,Thanet District Council,27/02/2018,448023,843.71,,Dennis Eagle Ltd,DEN005,Operational Services,Revenue,Direct Transport Costs,Vehicle Management
http://statistics.data.gov.uk/search?search=E07000114,Thanet District Council,27/02/2018,448241,373.14,,Dennis Eagle Ltd,DEN005,Operational Services,Revenue,Direct Transport Costs,Vehicle Management
http://statistics.data.gov.uk/search?search=E07000114,Thanet District Council,27/02/2018,449217,23.50,,Dennis Eagle Ltd,DEN005,Operational Services,Revenue,Direct Transport Costs,Vehicle Management
http://statistics.data.gov.uk/search?search=E07000114,Thanet District Council,27/02/2018,448661,373.31,,E Saunders Margate Ltd,SAU001,Operational Services,Revenue,"Repairs,  Alter & Mtce - Build",Construction-Repair And Maint
http://statistics.data.gov.uk/search?search=E07000114,Thanet District Council,27/02/2018,448662,54.34,,E Saunders Margate Ltd,SAU001,Community Services,Revenue,"Repairs,  Alter & Mtce - Build",Construction-Repair And Maint
http://statistics.data.gov.uk/search?search=E07000114,Thanet District Council,27/02/2018,448662,657.38,,E Saunders Margate Ltd,SAU001,Corporate Governance,Revenue,"Repairs,  Alter & Mtce - Build",Construction-Repair And Maint
http://statistics.data.gov.uk/search?search=E07000114,Thanet District Council,27/02/2018,448662,48.30,,E Saunders Margate Ltd,SAU001,Operational Services,Revenue,"Repairs,  Alter & Mtce - Build",Construction-Repair And Maint
http://statistics.data.gov.uk/search?search=E07000114,Thanet District Council,27/02/2018,448663,108.84,,E Saunders Margate Ltd,SAU001,Community Services,Revenue,"Repairs,  Alter & Mtce - Build",Construction-Repair And Maint
http://statistics.data.gov.uk/search?search=E07000114,Thanet District Council,27/02/2018,448663,645.93,,E Saunders Margate Ltd,SAU001,Corporate Governance,Revenue,"Repairs,  Alter & Mtce - Build",Construction-Repair And Maint
http://statistics.data.gov.uk/search?search=E07000114,Thanet District Council,27/02/2018,448663,35.00,,E Saunders Margate Ltd,SAU001,Operational Services,Revenue,"Repairs,  Alter & Mtce - Build",Construction-Repair And Maint
http://statistics.data.gov.uk/search?search=E07000114,Thanet District Council,27/02/2018,448187,234.50,,East Kent Components Ltd,EKC006,Operational Services,Revenue,Direct Transport Costs,Vehicle Management
http://statistics.data.gov.uk/search?search=E07000114,Thanet District Council,27/02/2018,448370,233.24,,Edmundson Electrical Limited,EDM001,Operational Services,Revenue,"Repairs,  Alter & Mtce - Build",Building Construction Material
http://statistics.data.gov.uk/search?search=E07000114,Thanet District Council,27/02/2018,448372,2297.41,,Edmundson Electrical Limited,EDM001,Operational Services,Revenue,"Repairs,  Alter & Mtce - Build",Building Construction Material
http://statistics.data.gov.uk/search?search=E07000114,Thanet District Council,27/02/2018,448531,747.01,,Edmundson Electrical Limited,EDM001,Operational Services,Revenue,"Repairs,  Alter & Mtce - Build",Building Construction Material
http://statistics.data.gov.uk/search?search=E07000114,Thanet District Council,27/02/2018,448766,543.82,,Edmundson Electrical Limited,EDM001,Operational Services,Revenue,"Repairs,  Alter & Mtce - Build",Building Construction Material
http://statistics.data.gov.uk/search?search=E07000114,Thanet District Council,27/02/2018,448767,413.33,,Edmundson Electrical Limited,EDM001,Operational Services,Revenue,"Repairs,  Alter & Mtce - Build",Building Construction Material
http://statistics.data.gov.uk/search?search=E07000114,Thanet District Council,27/02/2018,448956,1407.12,,Electoral Reform Services,ELE010,Corporate Governance,Revenue,"Print, Stat And Gen Off Exps",Facilities And Mangement Serv
http://statistics.data.gov.uk/search?search=E07000114,Thanet District Council,27/02/2018,449209,532.00,,Family Mosaic Housing,FAM001,Corporate Resources and S151,Balance Sheet,Capital Exp-Non Council Assets,Housing Management
http://statistics.data.gov.uk/search?search=E07000114,Thanet District Council,27/02/2018,449210,1020.47,,Family Mosaic Housing,FAM001,Corporate Resources and S151,Balance Sheet,Capital Exp-Non Council Assets,Housing Management
http://statistics.data.gov.uk/search?search=E07000114,Thanet District Council,27/02/2018,448834,638.18,,Farrer Barnes Limited,FAR012,Corporate Resources and S151,Revenue,Agency Staff,Human Resources
http://statistics.data.gov.uk/search?search=E07000114,Thanet District Council,27/02/2018,448836,608.95,,Farrer Barnes Limited,FAR012,Corporate Resources and S151,Revenue,Agency Staff,Human Resources
http://statistics.data.gov.uk/search?search=E07000114,Thanet District Council,27/02/2018,448757,687.50,,Frandham Boarding Kennels,FRA010,Operational Services,Revenue,Services,Environmental Services
http://statistics.data.gov.uk/search?search=E07000114,Thanet District Council,27/02/2018,446217,210.41,,Frontier-Pitts Limited,FRO001,Operational Services,Revenue,"Repairs,  Alter & Mtce - Build",Building Construction Material
http://statistics.data.gov.uk/search?search=E07000114,Thanet District Council,27/02/2018,448687,797.00,,G & G Forklifts,GGF001,Operational Services,Revenue,"Repairs,  Alter & Mtce - Build",Vehicle Management
http://statistics.data.gov.uk/search?search=E07000114,Thanet District Council,27/02/2018,448002,692.16,,Gas Contract Services Ltd,GAS004,Corporate Resources and S151,Balance Sheet,Repairs And Mtce Holding A/C,Construction-Repair And Maint
http://statistics.data.gov.uk/search?search=E07000114,Thanet District Council,27/02/2018,448588,465.00,,Guard It Limited,GUA008,Operational Services,Revenue,Services,Facilities And Mangement Serv
http://statistics.data.gov.uk/search?search=E07000114,Thanet District Council,27/02/2018,449185,4252.54,,Heath Lambert Limited (Client Money),HEA011,Corporate Resources and S151,Balance Sheet,Insurance Holding Account,Financial Services
http://statistics.data.gov.uk/search?search=E07000114,Thanet District Council,27/02/2018,449187,126120.96,,Heath Lambert Limited (Client Money),HEA011,Corporate Resources and S151,Balance Sheet,Insurance Holding Account,Financial Services
http://statistics.data.gov.uk/search?search=E07000114,Thanet District Council,27/02/2018,449189,110392.30,,Heath Lambert Limited (Client Money),HEA011,Corporate Resources and S151,Balance Sheet,Insurance Holding Account,Financial Services
http://statistics.data.gov.uk/search?search=E07000114,Thanet District Council,27/02/2018,449191,1680.00,,Heath Lambert Limited (Client Money),HEA011,Corporate Resources and S151,Balance Sheet,Insurance Holding Account,Financial Services
http://statistics.data.gov.uk/search?search=E07000114,Thanet District Council,27/02/2018,449195,-309.14,,Heath Lambert Limited (Client Money),HEA011,Corporate Resources and S151,Balance Sheet,Insurance Holding Account,Financial Services
http://statistics.data.gov.uk/search?search=E07000114,Thanet District Council,27/02/2018,449196,4000.00,,Heath Lambert Limited (Client Money),HEA011,Corporate Resources and S151,Balance Sheet,Insurance Holding Account,Financial Services
http://statistics.data.gov.uk/search?search=E07000114,Thanet District Council,27/02/2018,449211,8470.58,,Hfd Construction,HFD001,Corporate Resources and S151,Balance Sheet,Capital Exp-Non Council Assets,Grants
http://statistics.data.gov.uk/search?search=E07000114,Thanet District Council,27/02/2018,448690,1950.95,,Hi Way Services Ltd,HIW002,Operational Services,Revenue,"Repairs,  Alter & Mtce - Build",Highway Equipment And Material
http://statistics.data.gov.uk/search?search=E07000114,Thanet District Council,27/02/2018,448384,2995.00,,Hilton Cabinet Co Ltd,HIL002,Corporate Resources and S151,Balance Sheet,Other Land And Buildings-Hra,Furniture And Soft Furnishings
http://statistics.data.gov.uk/search?search=E07000114,Thanet District Council,27/02/2018,448603,1370.00,,Hipperson Builders (M & E) Limited,HIP002,Operational Services,Revenue,"Repairs,  Alter & Mtce - Build",Construction-Repair And Maint
http://statistics.data.gov.uk/search?search=E07000114,Thanet District Council,27/02/2018,447958,891.98,,Hr Go (Kent) Ltd,HRG001,Operational Services,Revenue,Agency Staff,Human Resources
http://statistics.data.gov.uk/search?search=E07000114,Thanet District Council,27/02/2018,448210,628.75,,Hr Go (Kent) Ltd,HRG001,Operational Services,Revenue,Agency Staff,Human Resources
http://statistics.data.gov.uk/search?search=E07000114,Thanet District Council,27/02/2018,448211,7944.21,,Hr Go (Kent) Ltd,HRG001,Operational Services,Revenue,Agency Staff,Human Resources
http://statistics.data.gov.uk/search?search=E07000114,Thanet District Council,27/02/2018,448532,803.58,,Hr Go (Kent) Ltd,HRG001,Operational Services,Revenue,Agency Staff,Human Resources
http://statistics.data.gov.uk/search?search=E07000114,Thanet District Council,27/02/2018,448533,816.75,,Hr Go (Kent) Ltd,HRG001,Operational Services,Revenue,Agency Staff,Human Resources
http://statistics.data.gov.uk/search?search=E07000114,Thanet District Council,27/02/2018,448534,1193.25,,Hr Go (Kent) Ltd,HRG001,Operational Services,Revenue,Agency Staff,Human Resources
http://statistics.data.gov.uk/search?search=E07000114,Thanet District Council,27/02/2018,448536,487.16,,Hr Go (Kent) Ltd,HRG001,Operational Services,Revenue,Agency Staff,Human Resources
http://statistics.data.gov.uk/search?search=E07000114,Thanet District Council,27/02/2018,448537,997.52,,Hr Go (Kent) Ltd,HRG001,Operational Services,Revenue,Agency Staff,Human Resources
http://statistics.data.gov.uk/search?search=E07000114,Thanet District Council,27/02/2018,448686,579.84,,Hr Go (Kent) Ltd,HRG001,Operational Services,Revenue,Agency Staff,Human Resources
http://statistics.data.gov.uk/search?search=E07000114,Thanet District Council,27/02/2018,448688,6731.66,,Hr Go (Kent) Ltd,HRG001,Operational Services,Revenue,Agency Staff,Human Resources
http://statistics.data.gov.uk/search?search=E07000114,Thanet District Council,27/02/2018,448749,973.10,,Hr Go (Kent) Ltd,HRG001,Operational Services,Revenue,Agency Staff,Human Resources
http://statistics.data.gov.uk/search?search=E07000114,Thanet District Council,27/02/2018,448750,654.41,,Hr Go (Kent) Ltd,HRG001,Operational Services,Revenue,Agency Staff,Human Resources
http://statistics.data.gov.uk/search?search=E07000114,Thanet District Council,27/02/2018,448752,1193.25,,Hr Go (Kent) Ltd,HRG001,Operational Services,Revenue,Agency Staff,Human Resources
http://statistics.data.gov.uk/search?search=E07000114,Thanet District Council,27/02/2018,448753,865.62,,Hr Go (Kent) Ltd,HRG001,Operational Services,Revenue,Agency Staff,Human Resources
http://statistics.data.gov.uk/search?search=E07000114,Thanet District Council,27/02/2018,431024,360.00,,Idox Software  Limited,IDO001,Community Services,Revenue,Communications & Computing,ICT
http://statistics.data.gov.uk/search?search=E07000114,Thanet District Council,27/02/2018,448554,157.47,,Intercard Limited,INT024,Community Services,Revenue,"Print, Stat And Gen Off Exps",Financial Services
http://statistics.data.gov.uk/search?search=E07000114,Thanet District Council,27/02/2018,448554,241.51,,Intercard Limited,INT024,East Kent Shared Services,Revenue,"Equip, Furniture And Materials",Financial Services
http://statistics.data.gov.uk/search?search=E07000114,Thanet District Council,27/02/2018,448591,5356.27,,Kent County Council (Kcs),KCC003,Operational Services,Revenue,Energy Costs,Facilities And Mangement Serv
http://statistics.data.gov.uk/search?search=E07000114,Thanet District Council,27/02/2018,448592,9416.90,,Kent County Council (Kcs),KCC003,Operational Services,Revenue,Energy Costs,Facilities And Mangement Serv
http://statistics.data.gov.uk/search?search=E07000114,Thanet District Council,27/02/2018,448593,8168.40,,Kent County Council (Kcs),KCC003,Corporate Governance,Revenue,Energy Costs,Facilities And Mangement Serv
http://statistics.data.gov.uk/search?search=E07000114,Thanet District Council,27/02/2018,448594,12965.88,,Kent County Council (Kcs),KCC003,Corporate Governance,Revenue,Energy Costs,Facilities And Mangement Serv
http://statistics.data.gov.uk/search?search=E07000114,Thanet District Council,27/02/2018,448582,257.94,,Kingsdown Compressed Air Systems Ltd,KIN042,Operational Services,Revenue,"Equip, Furniture And Materials",Vehicle Management
http://statistics.data.gov.uk/search?search=E07000114,Thanet District Council,27/02/2018,448361,800.00,,Ling Metals Limited,LIN004,Operational Services,Revenue,Cleaning & Domestic Supplies,Environmental Services
http://statistics.data.gov.uk/search?search=E07000114,Thanet District Council,27/02/2018,448945,4285.00,,Local Government Futures Ltd,LOC013,Corporate Resources and S151,Revenue,Grants & Subscriptions,Consultancy
http://statistics.data.gov.uk/search?search=E07000114,Thanet District Council,27/02/2018,446657,449.50,,Lyreco Uk Limited,LYR001,Corporate Governance,Revenue,"Print, Stat And Gen Off Exps",Stationery
http://statistics.data.gov.uk/search?search=E07000114,Thanet District Council,27/02/2018,448829,200.00,,Lyreco Uk Ltd,LYR001,Corporate Governance,Revenue,Services,Stationery
http://statistics.data.gov.uk/search?search=E07000114,Thanet District Council,27/02/2018,448330,1255.55,,Mears Ltd,MEA003,Operational Services,Revenue,"Repairs,  Alter & Mtce - Build",Construction-Repair And Maint
http://statistics.data.gov.uk/search?search=E07000114,Thanet District Council,27/02/2018,448525,266.80,,Mears Ltd,MEA003,Operational Services,Revenue,"Repairs,  Alter & Mtce - Build",Construction-Repair And Maint
http://statistics.data.gov.uk/search?search=E07000114,Thanet District Council,27/02/2018,448644,427.74,,Mears Ltd,MEA003,Corporate Governance,Revenue,"Repairs,  Alter & Mtce - Build",Construction-Repair And Maint
http://statistics.data.gov.uk/search?search=E07000114,Thanet District Council,27/02/2018,448644,927.36,,Mears Ltd,MEA003,Operational Services,Revenue,"Repairs,  Alter & Mtce - Build",Construction-Repair And Maint
http://statistics.data.gov.uk/search?search=E07000114,Thanet District Council,27/02/2018,448671,330.00,,Mears Ltd,MEA003,Corporate Governance,Revenue,"Repairs,  Alter & Mtce - Build",Construction-Repair And Maint
http://statistics.data.gov.uk/search?search=E07000114,Thanet District Council,27/02/2018,448227,1350.00,,Michael Page Int Recruitment Ltd,PAG008,East Kent Shared Services,Revenue,Agency Staff,Human Resources
http://statistics.data.gov.uk/search?search=E07000114,Thanet District Council,27/02/2018,448601,1425.00,,Michael Page Int Recruitment Ltd,PAG008,East Kent Shared Services,Revenue,Agency Staff,Human Resources
http://statistics.data.gov.uk/search?search=E07000114,Thanet District Council,27/02/2018,448745,1500.00,,Michael Page Int Recruitment Ltd,PAG008,East Kent Shared Services,Revenue,Agency Staff,Human Resources
http://statistics.data.gov.uk/search?search=E07000114,Thanet District Council,27/02/2018,448841,1200.00,,Miss Lucy Bone,BON005,Operational Services,Revenue,Services,Legal Services
http://statistics.data.gov.uk/search?search=E07000114,Thanet District Council,27/02/2018,448338,5000.00,,Moreton Hayward Ltd,MOR034,Corporate Resources and S151,Balance Sheet,Council Dwellings,Consultancy
http://statistics.data.gov.uk/search?search=E07000114,Thanet District Council,27/02/2018,448782,466.20,,Morgan Jones Ltd,MOR001,Corporate Governance,Revenue,Agency Staff,Human Resources
http://statistics.data.gov.uk/search?search=E07000114,Thanet District Council,27/02/2018,449041,272.99,,Nat West Bank,NWE001,Corporate Resources and S151,Revenue,Services,Various Categories
http://statistics.data.gov.uk/search?search=E07000114,Thanet District Council,27/02/2018,448794,14677.22,,Neopost Limited Neofunds,NEO004,Corporate Governance,Revenue,Communications & Computing,Mail Services
http://statistics.data.gov.uk/search?search=E07000114,Thanet District Council,27/02/2018,448385,295.00,,Norton Way Motors Limited,NOR045,Community Services,Revenue,Direct Transport Costs,Vehicle Management
http://statistics.data.gov.uk/search?search=E07000114,Thanet District Council,27/02/2018,448385,10654.91,,Norton Way Motors Limited,NOR045,Corporate Resources and S151,Balance Sheet,Plant And Equipment,Vehicle Management
http://statistics.data.gov.uk/search?search=E07000114,Thanet District Council,27/02/2018,448386,10654.91,,Norton Way Motors Limited,NOR045,Corporate Resources and S151,Balance Sheet,Plant And Equipment,Vehicle Management
http://statistics.data.gov.uk/search?search=E07000114,Thanet District Council,27/02/2018,448386,295.00,,Norton Way Motors Limited,NOR045,Operational Services,Revenue,Direct Transport Costs,Vehicle Management
http://statistics.data.gov.uk/search?search=E07000114,Thanet District Council,27/02/2018,448392,947.17,,Ohuk Limited,OHU001,Operational Services,Revenue,Agency Staff,Human Resources
http://statistics.data.gov.uk/search?search=E07000114,Thanet District Council,27/02/2018,448685,1048.65,,Ohuk Limited,OHU001,Operational Services,Revenue,Agency Staff,Human Resources
http://statistics.data.gov.uk/search?search=E07000114,Thanet District Council,27/02/2018,448669,6121.43,,Oracle Corporation Uk Ltd,ORA001,East Kent Shared Services,Revenue,Communications & Computing,ICT
http://statistics.data.gov.uk/search?search=E07000114,Thanet District Council,27/02/2018,448391,1117.00,,Peer 1 (Uk) Limited,PEE003,East Kent Shared Services,Revenue,Communications & Computing,ICT
http://statistics.data.gov.uk/search?search=E07000114,Thanet District Council,27/02/2018,448576,1117.00,,Peer 1 (Uk) Limited,PEE003,East Kent Shared Services,Revenue,Communications & Computing,ICT
http://statistics.data.gov.uk/search?search=E07000114,Thanet District Council,27/02/2018,447998,3223.09,,Potter Raper Partnership,POT006,Corporate Resources and S151,Balance Sheet,Other Land And Buildings-Hra,Consultancy
http://statistics.data.gov.uk/search?search=E07000114,Thanet District Council,27/02/2018,448524,26687.27,,Potter Raper Partnership,POT006,Corporate Resources and S151,Balance Sheet,Other Land And Buildings-Hra,Consultancy
http://statistics.data.gov.uk/search?search=E07000114,Thanet District Council,27/02/2018,448527,1800.00,,Premier Signs,PRE027,Operational Services,Revenue,"Equip, Furniture And Materials",Building Construction Material
http://statistics.data.gov.uk/search?search=E07000114,Thanet District Council,27/02/2018,448747,1384.32,,Probrand Ltd,PRO012,East Kent Shared Services,Revenue,Communications & Computing,ICT
http://statistics.data.gov.uk/search?search=E07000114,Thanet District Council,27/02/2018,448344,688.80,,Profile Security Services Limited,PRO018,Operational Services,Revenue,Services,Facilities And Mangement Serv
http://statistics.data.gov.uk/search?search=E07000114,Thanet District Council,27/02/2018,448336,630.00,,R Cannon,CAN007,Operational Services,Revenue,Services,Maritime Services
http://statistics.data.gov.uk/search?search=E07000114,Thanet District Council,27/02/2018,448619,455.00,,R Cannon,CAN007,Operational Services,Revenue,Services,Maritime Services
http://statistics.data.gov.uk/search?search=E07000114,Thanet District Council,27/02/2018,448758,450.00,,R Cannon,CAN007,Operational Services,Revenue,Services,Maritime Services
http://statistics.data.gov.uk/search?search=E07000114,Thanet District Council,27/02/2018,449000,420.00,,R Cannon,CAN007,Operational Services,Revenue,Services,Maritime Services
http://statistics.data.gov.uk/search?search=E07000114,Thanet District Council,27/02/2018,447928,4140.00,,Riverside Truck Rental Limited,RIV005,Operational Services,Revenue,Cont Hire & Operating Lease,Vehicle Management
http://statistics.data.gov.uk/search?search=E07000114,Thanet District Council,27/02/2018,448199,560.00,,Riverside Truck Rental Limited,RIV005,Operational Services,Revenue,Cont Hire & Operating Lease,Vehicle Management
http://statistics.data.gov.uk/search?search=E07000114,Thanet District Council,27/02/2018,448557,676.20,,Rolec Services Limited,ROL001,Operational Services,Revenue,"Equip, Furniture And Materials",Building Construction Material
http://statistics.data.gov.uk/search?search=E07000114,Thanet District Council,27/02/2018,448025,848.29,,Royal Mail,ROY004,Corporate Governance,Revenue,Communications & Computing,Mail Services
http://statistics.data.gov.uk/search?search=E07000114,Thanet District Council,27/02/2018,448977,1178.80,,Royal Mail,ROY004,Corporate Governance,Revenue,Communications & Computing,Mail Services
http://statistics.data.gov.uk/search?search=E07000114,Thanet District Council,27/02/2018,447785,536.06,,Scottish Water Business Stream Ltd,SCO019,Operational Services,Revenue,Water Services,Utilities
http://statistics.data.gov.uk/search?search=E07000114,Thanet District Council,27/02/2018,448697,3763.63,,Scottish Water Business Stream Ltd,SCO019,Operational Services,Revenue,Water Services,Utilities
http://statistics.data.gov.uk/search?search=E07000114,Thanet District Council,27/02/2018,448698,951.79,,Scottish Water Business Stream Ltd,SCO019,Corporate Governance,Revenue,Water Services,Utilities
http://statistics.data.gov.uk/search?search=E07000114,Thanet District Council,27/02/2018,448979,4598.00,,Sharpe Pritchard Llp,SHA030,East Kent Shared Services,Revenue,Services,Legal Services
http://statistics.data.gov.uk/search?search=E07000114,Thanet District Council,27/02/2018,448658,600.00,,Silent Running Productions Ltd,SIL009,Community Services,Revenue,Services,Grants
http://statistics.data.gov.uk/search?search=E07000114,Thanet District Council,27/02/2018,448343,2486.00,,Solarwinds Software Europe Limited,SOL016,East Kent Shared Services,Revenue,Communications & Computing,ICT
http://statistics.data.gov.uk/search?search=E07000114,Thanet District Council,27/02/2018,448760,3436.00,,Southampton Marine Services Limited,SOU033,Operational Services,Revenue,"Repairs,  Alter & Mtce - Build",Maritime Services
http://statistics.data.gov.uk/search?search=E07000114,Thanet District Council,27/02/2018,448521,230.00,,Standfast Burglar Alarm Co (Ek) Ltd,STA003,Corporate Governance,Revenue,"Repairs,  Alter & Mtce - Build",Facilities And Mangement Serv
http://statistics.data.gov.uk/search?search=E07000114,Thanet District Council,27/02/2018,448362,2512.50,,Stonaco Fabrications Ltd,STO002,Operational Services,Revenue,"Repairs,  Alter & Mtce - Build",Construction-Repair And Maint
http://statistics.data.gov.uk/search?search=E07000114,Thanet District Council,27/02/2018,448279,3250.00,,Strutt & Parker,STR036,Corporate Governance,Revenue,Services,Consultancy
http://statistics.data.gov.uk/search?search=E07000114,Thanet District Council,27/02/2018,448387,1115.50,,Studio Sam Causer Ltd,STU015,Corporate Resources and S151,Balance Sheet,Community Assets,Construction-Repair And Maint
http://statistics.data.gov.uk/search?search=E07000114,Thanet District Council,27/02/2018,448653,5480.00,,Survey And Test,SUR015,Corporate Governance,Revenue,"Repairs,  Alter & Mtce - Build",Utilities
http://statistics.data.gov.uk/search?search=E07000114,Thanet District Council,27/02/2018,449204,480.00,,Sycon Uk Ltd,SYC002,Community Services,Revenue,Grants & Subscriptions,Rent Deposits
http://statistics.data.gov.uk/search?search=E07000114,Thanet District Council,27/02/2018,449151,444.00,,Tebje Associates,TEB002,Community Services,Revenue,Services,Human Resources
http://statistics.data.gov.uk/search?search=E07000114,Thanet District Council,27/02/2018,447185,2250.00,,Thanet Nursery Project Limited,TNU001,Corporate Governance,Revenue,Rents,Facilities And Mangement Serv
http://statistics.data.gov.uk/search?search=E07000114,Thanet District Council,27/02/2018,449214,40250.00,,The Dreamland Trust,DRE003,Corporate Governance,Revenue,Grants & Subscriptions,Arts And Leisure Services
http://statistics.data.gov.uk/search?search=E07000114,Thanet District Council,27/02/2018,448354,3628.30,,The Glenwood Hotel,GLE007,Community Services,Revenue,Services,Housing Management
http://statistics.data.gov.uk/search?search=E07000114,Thanet District Council,27/02/2018,448355,2782.48,,The Glenwood Hotel,GLE007,Community Services,Revenue,Services,Housing Management
http://statistics.data.gov.uk/search?search=E07000114,Thanet District Council,27/02/2018,448356,2247.90,,The Glenwood Hotel,GLE007,Community Services,Revenue,Services,Housing Management
http://statistics.data.gov.uk/search?search=E07000114,Thanet District Council,27/02/2018,448672,2522.89,,The Glenwood Hotel,GLE007,Community Services,Revenue,Services,Housing Management
http://statistics.data.gov.uk/search?search=E07000114,Thanet District Council,27/02/2018,448673,2928.30,,The Glenwood Hotel,GLE007,Community Services,Revenue,Services,Housing Management
http://statistics.data.gov.uk/search?search=E07000114,Thanet District Council,27/02/2018,448734,3394.97,,The Glenwood Hotel,GLE007,Community Services,Revenue,Services,Housing Management
http://statistics.data.gov.uk/search?search=E07000114,Thanet District Council,27/02/2018,448665,500.35,,Total Supplies Ltd,TOT009,Operational Services,Revenue,"Equip, Furniture And Materials",Cleaning And Janitorial
http://statistics.data.gov.uk/search?search=E07000114,Thanet District Council,27/02/2018,448659,2079.00,,Townsends Engineering Ltd,TOW016,Operational Services,Revenue,"Repairs,  Alter & Mtce - Build",Construction-Repair And Maint
http://statistics.data.gov.uk/search?search=E07000114,Thanet District Council,27/02/2018,448742,482.30,,Townsends Engineering Ltd,TOW016,Operational Services,Revenue,"Repairs,  Alter & Mtce - Build",Construction-Repair And Maint
http://statistics.data.gov.uk/search?search=E07000114,Thanet District Council,27/02/2018,448743,440.00,,Townsends Engineering Ltd,TOW016,Operational Services,Revenue,"Repairs,  Alter & Mtce - Build",Construction-Repair And Maint
http://statistics.data.gov.uk/search?search=E07000114,Thanet District Council,27/02/2018,448744,1200.00,,Townsends Engineering Ltd,TOW016,Operational Services,Revenue,"Repairs,  Alter & Mtce - Build",Construction-Repair And Maint
http://statistics.data.gov.uk/search?search=E07000114,Thanet District Council,27/02/2018,449213,6000.00,,Turner Contemporary,TUR016,Community Services,Revenue,Grants & Subscriptions,Grants
http://statistics.data.gov.uk/search?search=E07000114,Thanet District Council,27/02/2018,448283,8800.00,,Vector Resourcing Ltd,VEC001,East Kent Shared Services,Revenue,Agency Staff,Human Resources
http://statistics.data.gov.uk/search?search=E07000114,Thanet District Council,27/02/2018,448285,8360.00,,Vector Resourcing Ltd,VEC001,East Kent Shared Services,Revenue,Agency Staff,Human Resources
http://statistics.data.gov.uk/search?search=E07000114,Thanet District Council,27/02/2018,448366,1263.96,,Veolia Es (Uk) Ltd,VEO001,Operational Services,Revenue,Cleaning & Domestic Supplies,Environmental Services
http://statistics.data.gov.uk/search?search=E07000114,Thanet District Council,27/02/2018,448526,28400.00,,Viking Systems Limited,VIK007,Corporate Resources and S151,Balance Sheet,Plant And Equipment,ICT
http://statistics.data.gov.uk/search?search=E07000114,Thanet District Council,27/02/2018,448547,208.62,,Viridor Waste Management Ltd,VIR003,Corporate Governance,Revenue,Cleaning & Domestic Supplies,Environmental Services
http://statistics.data.gov.uk/search?search=E07000114,Thanet District Council,27/02/2018,448553,338.49,,Viridor Waste Management Ltd,VIR003,Corporate Governance,Revenue,Cleaning & Domestic Supplies,Environmental Services
http://statistics.data.gov.uk/search?search=E07000114,Thanet District Council,27/02/2018,449040,315.63,,Worldpay Ltd,WOR008,Corporate Resources and S151,Revenue,Services,Financial Services
http://statistics.data.gov.uk/search?search=E07000114,Thanet District Council,27/02/2018,449043,3578.53,,Worldpay Ltd,WOR008,Corporate Resources and S151,Revenue,Services,Financial Services
http://statistics.data.gov.uk/search?search=E07000114,Thanet District Council,28/02/2018,448022,532.98,,Allstar Business Solutions Ltd,ALL038,Operational Services,Revenue,Direct Transport Costs,Vehicle Management
http://statistics.data.gov.uk/search?search=E07000114,Thanet District Council,28/02/2018,449351,628000.00,,Hardman & Watson Ltd,HAR076,Corporate Resources and S151,Balance Sheet,Council Dwellings,Legal Services
http://statistics.data.gov.uk/search?search=E07000114,Thanet District Council,28/02/2018,449351,5000.00,,Hardman & Watson Ltd,HAR076,Corporate Resources and S151,Balance Sheet,Council Dwellings,Legal Services
http://statistics.data.gov.uk/search?search=E07000114,Thanet District Council,28/02/2018,449351,39.00,,Hardman & Watson Ltd,HAR076,Corporate Resources and S151,Balance Sheet,Council Dwellings,Legal Services
http://statistics.data.gov.uk/search?search=E07000114,Thanet District Council,28/02/2018,448571,9000.00,,One 51 Es Plastics (Uk) Limited,ONE006,Operational Services,Revenue,"Equip, Furniture And Materials",Environmental Services
http://statistics.data.gov.uk/search?search=E07000114,Thanet District Council,28/02/2018,449008,224.38,,Public Works Loan Board,PWL001,Corporate Resources and S151,Balance Sheet,Borrowing Repayable>1 Yr,Investments And Loans
http://statistics.data.gov.uk/search?search=E07000114,Thanet District Council,28/02/2018,449008,1143.94,,Public Works Loan Board,PWL001,Corporate Resources and S151,Balance Sheet,Debit Interest And Expenses,Investments And Loans
http://statistics.data.gov.uk/search?search=E07000114,Thanet District Council,28/02/2018,449014,15800.00,,Public Works Loan Board,PWL001,Corporate Resources and S151,Balance Sheet,Debit Interest And Expenses,Investments And Loans
http://statistics.data.gov.uk/search?search=E07000114,Thanet District Council,28/02/2018,449046,702.79,,Santander Uk Plc,SAN017,Corporate Resources and S151,Revenue,Services,Various Categories
http://statistics.data.gov.uk/search?search=E07000114,Thanet District Council,28/02/2018,449021,-115662.00,,Secretary Of State,SEC003,Corporate Resources and S151,Revenue,Revenue Financing,Government Agencies
http://statistics.data.gov.uk/search?search=E07000114,Thanet District Council,28/02/2018,449021,1402811.00,,Secretary Of State,SEC003,Corporate Resources and S151,Balance Sheet,Collection Fund,Government Agencies
http://statistics.data.gov.uk/search?search=E07000114,Thanet District Council,28/02/2018,449034,2581.16,,Worldpay Ltd,WOR008,Corporate Resources and S151,Revenue,Services,Financial Services
,,,,,,,,,,,,,,16573.34,220,16793.34
